{"text_format":"1","workbook":"xlsx","n_sheets":2,"sheets":["ИТОГ","Адреса объектов"],"not_rendered":{"charts":0,"images":0,"macros":0,"external_links":1,"defined_names":3,"comments":0,"pivot_tables":0},"unopened":[],"bounds":{"document_bytes":16777216,"sheet_cells":100000,"rows_first":2000,"rows_last":500,"rows_between":2000,"halvings":0,"cell_chars":16384,"cell_head_chars":4096},"cells_cut":0,"cells_raw":0,"read":"whole","date_system":"1900"}

{"sheet":"ИТОГ","index":0,"n_rows":48,"n_cols":452,"rows_kept":48,"cut":false,"hidden":false,"merged":[]}
["Продажи на 02.01.2018",null,null," ",null,null,"РЕЗУЛЬТАТ ПО ДНЯМ",null,null,null,null,null,null,null,null,null,null,null,null,null,null,null,null,null,null,null,null,null,null,null,null,null,null,null,null,null,null,null,null,null,null,null,null,null,null,null,null,null,null,null,null,null,null,null,null,null,null,null,null,null,null,null,null,null,null,null,null,null,null,null,null,null,null,null,null,null,null,null,null,null,null,null,null,null,null,null,null,null,null,null,null,null,null,null,null,null,null,null,null,null,null,null,null,null,null,null,null,null,null,null,null,null,null,null,null,null,null,null,null,null,null,null,null,null,null,null,null,null,null,null,null,null,null,null,null,null,null,null,null,null,null,null,null,null,null,null,null,null,null,null,null,null,null,null,null,null,null,null,null,null,null,null,null,null,null,null,null,null,null,null,null,null,null,null,null,null,null,null,null,null,null,null,null,null,null,null,null,null,null,null,null,null,null,null,null,null,null,null,null,null,null,null,null,null,null,null,null,null,null,null,null,null,null,null,null,null,null,null,null,null,null,null,null,null,null,null,null,null,null,null,null,null,null,null,null,null,null,null,null,null,null,null,null,null,null,null,null,null,null,null,null,null,null,null,null,null,null,null,null,null,null,null,null,null,null,null,null,null,null,null,null,null,null,null,null,null,null,null,null,null,null,null,null,null,null,null,null,null,null,null,null,null,null,null,null,null,null,null,null,null,null,null,null,null,null,null,null,null,null,null,null,null,null,null,null,null,null,null,null,null,null,null,null,null,null,null,null,null,null,null,null,null,null,null,null,null,null,null,null,null,null,null,null,null,null,null,null,null,null,null,null,null,null,null,null,null,null,null,null,null,null,null,null,null,null,null,null,null,null,null,null,null,"РЕЗУЛЬТАТ ПО НЕДЕЛЯМ",null,null,null,null,null,null,null,null,null,null,null,null,null,null,null,null,null,null,null,null,null,null,null,null,null,null,null,null,null,null,null,null,null,null,null,null,null,null,null,null,null,null,null,null,null,null,null,null,null,null,null,null,null,"РЕЗУЛЬТАТ ПО МЕСЯЦАМ"]
["Название региона","Федеральный округ","Дата открытия региона","Год","Показатели","Ед.изм.","текущая год","2018-01-01","2018-01-02","2018-01-03","2018-01-04","2018-01-05","2018-01-06","2018-01-07","2018-01-08","2018-01-09","2018-01-10","2018-01-11","2018-01-12","2018-01-13","2018-01-14","2018-01-15","2018-01-16","2018-01-17","2018-01-18","2018-01-19","2018-01-20","2018-01-21","2018-01-22","2018-01-23","2018-01-24","2018-01-25","2018-01-26","2018-01-27","2018-01-28","2018-01-29","2018-01-30","2018-01-31","2018-02-01","2018-02-02","2018-02-03","2018-02-04","2018-02-05","2018-02-06","2018-02-07","2018-02-08","2018-02-09","2018-02-10","2018-02-11","2018-02-12","2018-02-13","2018-02-14","2018-02-15","2018-02-16","2018-02-17","2018-02-18","2018-02-19","2018-02-20","2018-02-21","2018-02-22","2018-02-23","2018-02-24","2018-02-25","2018-02-26","2018-02-27","2018-02-28","2018-03-01","2018-03-02","2018-03-03","2018-03-04","2018-03-05","2018-03-06","2018-03-07","2018-03-08","2018-03-09","2018-03-10","2018-03-11","2018-03-12","2018-03-13","2018-03-14","2018-03-15","2018-03-16","2018-03-17","2018-03-18","2018-03-19","2018-03-20","2018-03-21","2018-03-22","2018-03-23","2018-03-24","2018-03-25","2018-03-26","2018-03-27","2018-03-28","2018-03-29","2018-03-30","2018-03-31","2018-04-01","2018-04-02","2018-04-03","2018-04-04","2018-04-05","2018-04-06","2018-04-07","2018-04-08","2018-04-09","2018-04-10","2018-04-11","2018-04-12","2018-04-13","2018-04-14","2018-04-15","2018-04-16","2018-04-17","2018-04-18","2018-04-19","2018-04-20","2018-04-21","2018-04-22","2018-04-23","2018-04-24","2018-04-25","2018-04-26","2018-04-27","2018-04-28","2018-04-29","2018-04-30","2018-05-01","2018-05-02","2018-05-03","2018-05-04","2018-05-05","2018-05-06","2018-05-07","2018-05-08","2018-05-09","2018-05-10","2018-05-11","2018-05-12","2018-05-13","2018-05-14","2018-05-15","2018-05-16","2018-05-17","2018-05-18","2018-05-19","2018-05-20","2018-05-21","2018-05-22","2018-05-23","2018-05-24","2018-05-25","2018-05-26","2018-05-27","2018-05-28","2018-05-29","2018-05-30","2018-05-31","2018-06-01","2018-06-02","2018-06-03","2018-06-04","2018-06-05","2018-06-06","2018-06-07","2018-06-08","2018-06-09","2018-06-10","2018-06-11","2018-06-12","2018-06-13","2018-06-14","2018-06-15","2018-06-16","2018-06-17","2018-06-18","2018-06-19","2018-06-20","2018-06-21","2018-06-22","2018-06-23","2018-06-24","2018-06-25","2018-06-26","2018-06-27","2018-06-28","2018-06-29","2018-06-30","2018-07-01","2018-07-02","2018-07-03","2018-07-04","2018-07-05","2018-07-06","2018-07-07","2018-07-08","2018-07-09","2018-07-10","2018-07-11","2018-07-12","2018-07-13","2018-07-14","2018-07-15","2018-07-16","2018-07-17","2018-07-18","2018-07-19","2018-07-20","2018-07-21","2018-07-22","2018-07-23","2018-07-24","2018-07-25","2018-07-26","2018-07-27","2018-07-28","2018-07-29","2018-07-30","2018-07-31","2018-08-01","2018-08-02","2018-08-03","2018-08-04","2018-08-05","2018-08-06","2018-08-07","2018-08-08","2018-08-09","2018-08-10","2018-08-11","2018-08-12","2018-08-13","2018-08-14","2018-08-15","2018-08-16","2018-08-17","2018-08-18","2018-08-19","2018-08-20","2018-08-21","2018-08-22","2018-08-23","2018-08-24","2018-08-25","2018-08-26","2018-08-27","2018-08-28","2018-08-29","2018-08-30","2018-08-31","2018-09-01","2018-09-02","2018-09-03","2018-09-04","2018-09-05","2018-09-06","2018-09-07","2018-09-08","2018-09-09","2018-09-10","2018-09-11","2018-09-12","2018-09-13","2018-09-14","2018-09-15","2018-09-16","2018-09-17","2018-09-18","2018-09-19","2018-09-20","2018-09-21","2018-09-22","2018-09-23","2018-09-24","2018-09-25","2018-09-26","2018-09-27","2018-09-28","2018-09-29","2018-09-30","2018-10-01","2018-10-02","2018-10-03","2018-10-04","2018-10-05","2018-10-06","2018-10-07","2018-10-08","2018-10-09","2018-10-10","2018-10-11","2018-10-12","2018-10-13","2018-10-14","2018-10-15","2018-10-16","2018-10-17","2018-10-18","2018-10-19","2018-10-20","2018-10-21","2018-10-22","2018-10-23","2018-10-24","2018-10-25","2018-10-26","2018-10-27","2018-10-28","2018-10-29","2018-10-30","2018-10-31","2018-11-01","2018-11-02","2018-11-03","2018-11-04","2018-11-05","2018-11-06","2018-11-07","2018-11-08","2018-11-09","2018-11-10","2018-11-11","2018-11-12","2018-11-13","2018-11-14","2018-11-15","2018-11-16","2018-11-17","2018-11-18","2018-11-19","2018-11-20","2018-11-21","2018-11-22","2018-11-23","2018-11-24","2018-11-25","2018-11-26","2018-11-27","2018-11-28","2018-11-29","2018-11-30","2018-12-01","2018-12-02","2018-12-03","2018-12-04","2018-12-05","2018-12-06","2018-12-07","2018-12-08","2018-12-09","2018-12-10","2018-12-11","2018-12-12","2018-12-13","2018-12-14","2018-12-15","2018-12-16","2018-12-17","2018-12-18","2018-12-19","2018-12-20","2018-12-21","2018-12-22","2018-12-23","2018-12-24","2018-12-25","2018-12-26","2018-12-27","2018-12-28","2018-12-29","2018-12-30","2018-12-31",null,{"$f":"TEXT(INDEX($H$2:$NH$2,1,MATCH(NJ$3,$H$3:$NH$3,0)),\"ДД.ММ-\")&IF(NJ$3=53,TEXT($NH$2,\"ДД.ММ.ГГ\"),TEXT(INDEX($H$2:$NH$2,1,MATCH(NJ$3+1,$H$3:$NH$3,0))-1,\"ДД.ММ.ГГ\"))","v":"01.01-07.01.18"},{"$f":"TEXT(INDEX($H$2:$NH$2,1,MATCH(NK$3,$H$3:$NH$3,0)),\"ДД.ММ-\")&IF(NK$3=53,TEXT($NH$2,\"ДД.ММ.ГГ\"),TEXT(INDEX($H$2:$NH$2,1,MATCH(NK$3+1,$H$3:$NH$3,0))-1,\"ДД.ММ.ГГ\"))","v":"08.01-14.01.18"},"15.01-21.01.18","22.01-28.01.18","29.01-04.02.18","05.02-11.02.18","12.02-18.02.18","19.02-25.02.18","26.02-04.03.18","05.03-11.03.18","12.03-18.03.18","19.03-25.03.18","26.03-01.04.18","02.04-08.04.18","09.04-15.04.18","16.04-22.04.18","23.04-29.04.18","30.04-06.05.18","07.05-13.05.18","14.05-20.05.18","21.05-27.05.18","28.05-03.06.18","04.06-10.06.18","11.06-17.06.18","18.06-24.06.18","25.06-01.07.18","02.07-08.07.18","09.07-15.07.18","16.07-22.07.18","23.07-29.07.18","30.07-05.08.18","06.08-12.08.18","13.08-19.08.18","20.08-26.08.18","27.08-02.09.18","03.09-09.09.18","10.09-16.09.18","17.09-23.09.18","24.09-30.09.18","01.10-07.10.18","08.10-14.10.18","15.10-21.10.18","22.10-28.10.18","29.10-04.11.18","05.11-11.11.18","12.11-18.11.18","19.11-25.11.18","26.11-02.12.18","03.12-09.12.18","10.12-16.12.18","17.12-23.12.18","24.12-30.12.18","31.12-31.12.18",null,{"$f":"$H$2","v":"2018-01-01"},{"$f":"EDATE(PL2,1)","v":"2018-02-01"},{"$f":"EDATE(PM2,1)","v":"2018-03-01"},{"$f":"EDATE(PN2,1)","v":"2018-04-01"},"2018-05-01","2018-06-01","2018-07-01","2018-08-01","2018-09-01","2018-10-01","2018-11-01","2018-12-01",null,"ГОД",null,"Усредненый прогноз","Прогноз по динамике роста","Оптимизированный прогноз","Планы","Процент выполнения планов","Доля по каналам сбыта",null,"Празничные дни","Работа в выходной день","Выходные дни"]
[null,null,null,null,null,null,"номер недели",1,1,1,1,1,1,1,2,2,2,2,2,2,2,3,3,3,3,3,3,3,4,4,4,4,4,4,4,5,5,5,5,5,5,5,6,6,6,6,6,6,6,7,7,7,7,7,7,7,8,8,8,8,8,8,8,9,9,9,9,9,9,9,10,10,10,10,10,10,10,11,11,11,11,11,11,11,12,12,12,12,12,12,12,13,13,13,13,13,13,13,14,14,14,14,14,14,14,15,15,15,15,15,15,15,16,16,16,16,16,16,16,17,17,17,17,17,17,17,18,18,18,18,18,18,18,19,19,19,19,19,19,19,20,20,20,20,20,20,20,21,21,21,21,21,21,21,22,22,22,22,22,22,22,23,23,23,23,23,23,23,24,24,24,24,24,24,24,25,25,25,25,25,25,25,26,26,26,26,26,26,26,27,27,27,27,27,27,27,28,28,28,28,28,28,28,29,29,29,29,29,29,29,30,30,30,30,30,30,30,31,31,31,31,31,31,31,32,32,32,32,32,32,32,33,33,33,33,33,33,33,34,34,34,34,34,34,34,35,35,35,35,35,35,35,36,36,36,36,36,36,36,37,37,37,37,37,37,37,38,38,38,38,38,38,38,39,39,39,39,39,39,39,40,40,40,40,40,40,40,41,41,41,41,41,41,41,42,42,42,42,42,42,42,43,43,43,43,43,43,43,44,44,44,44,44,44,44,45,45,45,45,45,45,45,46,46,46,46,46,46,46,47,47,47,47,47,47,47,48,48,48,48,48,48,48,49,49,49,49,49,49,49,50,50,50,50,50,50,50,51,51,51,51,51,51,51,52,52,52,52,52,52,52,53,null,1,2,3,4,5,6,7,8,9,10,11,12,13,14,15,16,17,18,19,20,21,22,23,24,25,26,27,28,29,30,31,32,33,34,35,36,37,38,39,40,41,42,43,44,45,46,47,48,49,50,51,52,53]
[null,null,null,null,null,null,"день недели",1,2,3,4,5,6,7,1,2,3,4,5,6,7,1,2,3,4,5,6,7,1,2,3,4,5,6,7,1,2,3,4,5,6,7,1,2,3,4,5,6,7,1,2,3,4,5,6,7,1,2,3,4,5,6,7,1,2,3,4,5,6,7,1,2,3,4,5,6,7,1,2,3,4,5,6,7,1,2,3,4,5,6,7,1,2,3,4,5,6,7,1,2,3,4,5,6,7,1,2,3,4,5,6,7,1,2,3,4,5,6,7,1,2,3,4,5,6,7,1,2,3,4,5,6,7,1,2,3,4,5,6,7,1,2,3,4,5,6,7,1,2,3,4,5,6,7,1,2,3,4,5,6,7,1,2,3,4,5,6,7,1,2,3,4,5,6,7,1,2,3,4,5,6,7,1,2,3,4,5,6,7,1,2,3,4,5,6,7,1,2,3,4,5,6,7,1,2,3,4,5,6,7,1,2,3,4,5,6,7,1,2,3,4,5,6,7,1,2,3,4,5,6,7,1,2,3,4,5,6,7,1,2,3,4,5,6,7,1,2,3,4,5,6,7,1,2,3,4,5,6,7,1,2,3,4,5,6,7,1,2,3,4,5,6,7,1,2,3,4,5,6,7,1,2,3,4,5,6,7,1,2,3,4,5,6,7,1,2,3,4,5,6,7,1,2,3,4,5,6,7,1,2,3,4,5,6,7,1,2,3,4,5,6,7,1,2,3,4,5,6,7,1,2,3,4,5,6,7,1,2,3,4,5,6,7,1,2,3,4,5,6,7,1,2,3,4,5,6,7,1,2,3,4,5,6,7,1,2,3,4,5,6,7,1]
[null,null,null,null,null,null,"месяц",1,1,1,1,1,1,1,1,1,1,1,1,1,1,1,1,1,1,1,1,1,1,1,1,1,1,1,1,1,1,1,2,2,2,2,2,2,2,2,2,2,2,2,2,2,2,2,2,2,2,2,2,2,2,2,2,2,2,2,3,3,3,3,3,3,3,3,3,3,3,3,3,3,3,3,3,3,3,3,3,3,3,3,3,3,3,3,3,3,3,4,4,4,4,4,4,4,4,4,4,4,4,4,4,4,4,4,4,4,4,4,4,4,4,4,4,4,4,4,4,5,5,5,5,5,5,5,5,5,5,5,5,5,5,5,5,5,5,5,5,5,5,5,5,5,5,5,5,5,5,5,6,6,6,6,6,6,6,6,6,6,6,6,6,6,6,6,6,6,6,6,6,6,6,6,6,6,6,6,6,6,7,7,7,7,7,7,7,7,7,7,7,7,7,7,7,7,7,7,7,7,7,7,7,7,7,7,7,7,7,7,7,8,8,8,8,8,8,8,8,8,8,8,8,8,8,8,8,8,8,8,8,8,8,8,8,8,8,8,8,8,8,8,9,9,9,9,9,9,9,9,9,9,9,9,9,9,9,9,9,9,9,9,9,9,9,9,9,9,9,9,9,9,10,10,10,10,10,10,10,10,10,10,10,10,10,10,10,10,10,10,10,10,10,10,10,10,10,10,10,10,10,10,10,11,11,11,11,11,11,11,11,11,11,11,11,11,11,11,11,11,11,11,11,11,11,11,11,11,11,11,11,11,11,12,12,12,12,12,12,12,12,12,12,12,12,12,12,12,12,12,12,12,12,12,12,12,12,12,12,12,12,12,12,12,null,null,null,null,null,null,null,null,null,null,null,null,null,null,null,null,null,null,null,null,null,null,null,null,null,null,null,null,null,null,null,null,null,null,null,null,null,null,null,null,null,null,null,null,null,null,null,null,null,null,null,null,null,null,null,1,2,3,4,5,6,7,8,9,10,11,12]
[null,null,null,null,null,null,"год",2018,2018,2018,2018,2018,2018,2018,2018,2018,2018,2018,2018,2018,2018,2018,2018,2018,2018,2018,2018,2018,2018,2018,2018,2018,2018,2018,2018,2018,2018,2018,2018,2018,2018,2018,2018,2018,2018,2018,2018,2018,2018,2018,2018,2018,2018,2018,2018,2018,2018,2018,2018,2018,2018,2018,2018,2018,2018,2018,2018,2018,2018,2018,2018,2018,2018,2018,2018,2018,2018,2018,2018,2018,2018,2018,2018,2018,2018,2018,2018,2018,2018,2018,2018,2018,2018,2018,2018,2018,2018,2018,2018,2018,2018,2018,2018,2018,2018,2018,2018,2018,2018,2018,2018,2018,2018,2018,2018,2018,2018,2018,2018,2018,2018,2018,2018,2018,2018,2018,2018,2018,2018,2018,2018,2018,2018,2018,2018,2018,2018,2018,2018,2018,2018,2018,2018,2018,2018,2018,2018,2018,2018,2018,2018,2018,2018,2018,2018,2018,2018,2018,2018,2018,2018,2018,2018,2018,2018,2018,2018,2018,2018,2018,2018,2018,2018,2018,2018,2018,2018,2018,2018,2018,2018,2018,2018,2018,2018,2018,2018,2018,2018,2018,2018,2018,2018,2018,2018,2018,2018,2018,2018,2018,2018,2018,2018,2018,2018,2018,2018,2018,2018,2018,2018,2018,2018,2018,2018,2018,2018,2018,2018,2018,2018,2018,2018,2018,2018,2018,2018,2018,2018,2018,2018,2018,2018,2018,2018,2018,2018,2018,2018,2018,2018,2018,2018,2018,2018,2018,2018,2018,2018,2018,2018,2018,2018,2018,2018,2018,2018,2018,2018,2018,2018,2018,2018,2018,2018,2018,2018,2018,2018,2018,2018,2018,2018,2018,2018,2018,2018,2018,2018,2018,2018,2018,2018,2018,2018,2018,2018,2018,2018,2018,2018,2018,2018,2018,2018,2018,2018,2018,2018,2018,2018,2018,2018,2018,2018,2018,2018,2018,2018,2018,2018,2018,2018,2018,2018,2018,2018,2018,2018,2018,2018,2018,2018,2018,2018,2018,2018,2018,2018,2018,2018,2018,2018,2018,2018,2018,2018,2018,2018,2018,2018,2018,2018,2018,2018,2018,2018,2018,2018,2018,2018,2018,2018,2018,2018,2018,2018,2018,2018,2018,2018,2018,2018,2018,2018,2018,2018,2018,2018,2018,2018,2018]
[null,null,null,null,null,null,"прошлый год","2017-01-02","2017-01-03","2017-01-04","2017-01-05","2017-01-06","2017-01-07","2017-01-08","2017-01-09","2017-01-10","2017-01-11","2017-01-12","2017-01-13","2017-01-14","2017-01-15","2017-01-16","2017-01-17","2017-01-18","2017-01-19","2017-01-20","2017-01-21","2017-01-22","2017-01-23","2017-01-24","2017-01-25","2017-01-26","2017-01-27","2017-01-28","2017-01-29","2017-01-30","2017-01-31","2017-02-01","2017-02-02","2017-02-03","2017-02-04","2017-02-05","2017-02-06","2017-02-07","2017-02-08","2017-02-09","2017-02-10","2017-02-11","2017-02-12","2017-02-13","2017-02-14","2017-02-15","2017-02-16","2017-02-17","2017-02-18","2017-02-19","2017-02-20","2017-02-21","2017-02-22","2017-02-23","2017-02-24","2017-02-25","2017-02-26","2017-02-27","2017-02-28","2017-03-01","2017-03-02","2017-03-03","2017-03-04","2017-03-05","2017-03-06","2017-03-07","2017-03-08","2017-03-09","2017-03-10","2017-03-11","2017-03-12","2017-03-13","2017-03-14","2017-03-15","2017-03-16","2017-03-17","2017-03-18","2017-03-19","2017-03-20","2017-03-21","2017-03-22","2017-03-23","2017-03-24","2017-03-25","2017-03-26","2017-03-27","2017-03-28","2017-03-29","2017-03-30","2017-03-31","2017-04-01","2017-04-02","2017-04-03","2017-04-04","2017-04-05","2017-04-06","2017-04-07","2017-04-08","2017-04-09","2017-04-10","2017-04-11","2017-04-12","2017-04-13","2017-04-14","2017-04-15","2017-04-16","2017-04-17","2017-04-18","2017-04-19","2017-04-20","2017-04-21","2017-04-22","2017-04-23","2017-04-24","2017-04-25","2017-04-26","2017-04-27","2017-04-28","2017-04-29","2017-04-30","2017-05-01","2017-05-02","2017-05-03","2017-05-04","2017-05-05","2017-05-06","2017-05-07","2017-05-08","2017-05-09","2017-05-10","2017-05-11","2017-05-12","2017-05-13","2017-05-14","2017-05-15","2017-05-16","2017-05-17","2017-05-18","2017-05-19","2017-05-20","2017-05-21","2017-05-22","2017-05-23","2017-05-24","2017-05-25","2017-05-26","2017-05-27","2017-05-28","2017-05-29","2017-05-30","2017-05-31","2017-06-01","2017-06-02","2017-06-03","2017-06-04","2017-06-05","2017-06-06","2017-06-07","2017-06-08","2017-06-09","2017-06-10","2017-06-11","2017-06-12","2017-06-13","2017-06-14","2017-06-15","2017-06-16","2017-06-17","2017-06-18","2017-06-19","2017-06-20","2017-06-21","2017-06-22","2017-06-23","2017-06-24","2017-06-25","2017-06-26","2017-06-27","2017-06-28","2017-06-29","2017-06-30","2017-07-01","2017-07-02","2017-07-03","2017-07-04","2017-07-05","2017-07-06","2017-07-07","2017-07-08","2017-07-09","2017-07-10","2017-07-11","2017-07-12","2017-07-13","2017-07-14","2017-07-15","2017-07-16","2017-07-17","2017-07-18","2017-07-19","2017-07-20","2017-07-21","2017-07-22","2017-07-23","2017-07-24","2017-07-25","2017-07-26","2017-07-27","2017-07-28","2017-07-29","2017-07-30","2017-07-31","2017-08-01","2017-08-02","2017-08-03","2017-08-04","2017-08-05","2017-08-06","2017-08-07","2017-08-08","2017-08-09","2017-08-10","2017-08-11","2017-08-12","2017-08-13","2017-08-14","2017-08-15","2017-08-16","2017-08-17","2017-08-18","2017-08-19","2017-08-20","2017-08-21","2017-08-22","2017-08-23","2017-08-24","2017-08-25","2017-08-26","2017-08-27","2017-08-28","2017-08-29","2017-08-30","2017-08-31","2017-09-01","2017-09-02","2017-09-03","2017-09-04","2017-09-05","2017-09-06","2017-09-07","2017-09-08","2017-09-09","2017-09-10","2017-09-11","2017-09-12","2017-09-13","2017-09-14","2017-09-15","2017-09-16","2017-09-17","2017-09-18","2017-09-19","2017-09-20","2017-09-21","2017-09-22","2017-09-23","2017-09-24","2017-09-25","2017-09-26","2017-09-27","2017-09-28","2017-09-29","2017-09-30","2017-10-01","2017-10-02","2017-10-03","2017-10-04","2017-10-05","2017-10-06","2017-10-07","2017-10-08","2017-10-09","2017-10-10","2017-10-11","2017-10-12","2017-10-13","2017-10-14","2017-10-15","2017-10-16","2017-10-17","2017-10-18","2017-10-19","2017-10-20","2017-10-21","2017-10-22","2017-10-23","2017-10-24","2017-10-25","2017-10-26","2017-10-27","2017-10-28","2017-10-29","2017-10-30","2017-10-31","2017-11-01","2017-11-02","2017-11-03","2017-11-04","2017-11-05","2017-11-06","2017-11-07","2017-11-08","2017-11-09","2017-11-10","2017-11-11","2017-11-12","2017-11-13","2017-11-14","2017-11-15","2017-11-16","2017-11-17","2017-11-18","2017-11-19","2017-11-20","2017-11-21","2017-11-22","2017-11-23","2017-11-24","2017-11-25","2017-11-26","2017-11-27","2017-11-28","2017-11-29","2017-11-30","2017-12-01","2017-12-02","2017-12-03","2017-12-04","2017-12-05","2017-12-06","2017-12-07","2017-12-08","2017-12-09","2017-12-10","2017-12-11","2017-12-12","2017-12-13","2017-12-14","2017-12-15","2017-12-16","2017-12-17","2017-12-18","2017-12-19","2017-12-20","2017-12-21","2017-12-22","2017-12-23","2017-12-24","2017-12-25","2017-12-26","2017-12-27","2017-12-28","2017-12-29","2017-12-30","2017-12-31","2018-01-01"]
[null,null,null,null,null,null,"номер недели",2,2,2,2,2,2,2,3,3,3,3,3,3,3,4,4,4,4,4,4,4,5,5,5,5,5,5,5,6,6,6,6,6,6,6,7,7,7,7,7,7,7,8,8,8,8,8,8,8,9,9,9,9,9,9,9,10,10,10,10,10,10,10,11,11,11,11,11,11,11,12,12,12,12,12,12,12,13,13,13,13,13,13,13,14,14,14,14,14,14,14,15,15,15,15,15,15,15,16,16,16,16,16,16,16,17,17,17,17,17,17,17,18,18,18,18,18,18,18,19,19,19,19,19,19,19,20,20,20,20,20,20,20,21,21,21,21,21,21,21,22,22,22,22,22,22,22,23,23,23,23,23,23,23,24,24,24,24,24,24,24,25,25,25,25,25,25,25,26,26,26,26,26,26,26,27,27,27,27,27,27,27,28,28,28,28,28,28,28,29,29,29,29,29,29,29,30,30,30,30,30,30,30,31,31,31,31,31,31,31,32,32,32,32,32,32,32,33,33,33,33,33,33,33,34,34,34,34,34,34,34,35,35,35,35,35,35,35,36,36,36,36,36,36,36,37,37,37,37,37,37,37,38,38,38,38,38,38,38,39,39,39,39,39,39,39,40,40,40,40,40,40,40,41,41,41,41,41,41,41,42,42,42,42,42,42,42,43,43,43,43,43,43,43,44,44,44,44,44,44,44,45,45,45,45,45,45,45,46,46,46,46,46,46,46,47,47,47,47,47,47,47,48,48,48,48,48,48,48,49,49,49,49,49,49,49,50,50,50,50,50,50,50,51,51,51,51,51,51,51,52,52,52,52,52,52,52,53,53,53,53,53,53,53,1]
[null,null,null,null,null,null,"день недели",1,2,3,4,5,6,7,1,2,3,4,5,6,7,1,2,3,4,5,6,7,1,2,3,4,5,6,7,1,2,3,4,5,6,7,1,2,3,4,5,6,7,1,2,3,4,5,6,7,1,2,3,4,5,6,7,1,2,3,4,5,6,7,1,2,3,4,5,6,7,1,2,3,4,5,6,7,1,2,3,4,5,6,7,1,2,3,4,5,6,7,1,2,3,4,5,6,7,1,2,3,4,5,6,7,1,2,3,4,5,6,7,1,2,3,4,5,6,7,1,2,3,4,5,6,7,1,2,3,4,5,6,7,1,2,3,4,5,6,7,1,2,3,4,5,6,7,1,2,3,4,5,6,7,1,2,3,4,5,6,7,1,2,3,4,5,6,7,1,2,3,4,5,6,7,1,2,3,4,5,6,7,1,2,3,4,5,6,7,1,2,3,4,5,6,7,1,2,3,4,5,6,7,1,2,3,4,5,6,7,1,2,3,4,5,6,7,1,2,3,4,5,6,7,1,2,3,4,5,6,7,1,2,3,4,5,6,7,1,2,3,4,5,6,7,1,2,3,4,5,6,7,1,2,3,4,5,6,7,1,2,3,4,5,6,7,1,2,3,4,5,6,7,1,2,3,4,5,6,7,1,2,3,4,5,6,7,1,2,3,4,5,6,7,1,2,3,4,5,6,7,1,2,3,4,5,6,7,1,2,3,4,5,6,7,1,2,3,4,5,6,7,1,2,3,4,5,6,7,1,2,3,4,5,6,7,1,2,3,4,5,6,7,1,2,3,4,5,6,7,1,2,3,4,5,6,7,1,2,3,4,5,6,7,1]
[null,null,null,null,null,null,"месяц",1,1,1,1,1,1,1,1,1,1,1,1,1,1,1,1,1,1,1,1,1,1,1,1,1,1,1,1,1,1,2,2,2,2,2,2,2,2,2,2,2,2,2,2,2,2,2,2,2,2,2,2,2,2,2,2,2,2,3,3,3,3,3,3,3,3,3,3,3,3,3,3,3,3,3,3,3,3,3,3,3,3,3,3,3,3,3,3,3,4,4,4,4,4,4,4,4,4,4,4,4,4,4,4,4,4,4,4,4,4,4,4,4,4,4,4,4,4,4,5,5,5,5,5,5,5,5,5,5,5,5,5,5,5,5,5,5,5,5,5,5,5,5,5,5,5,5,5,5,5,6,6,6,6,6,6,6,6,6,6,6,6,6,6,6,6,6,6,6,6,6,6,6,6,6,6,6,6,6,6,7,7,7,7,7,7,7,7,7,7,7,7,7,7,7,7,7,7,7,7,7,7,7,7,7,7,7,7,7,7,7,8,8,8,8,8,8,8,8,8,8,8,8,8,8,8,8,8,8,8,8,8,8,8,8,8,8,8,8,8,8,8,9,9,9,9,9,9,9,9,9,9,9,9,9,9,9,9,9,9,9,9,9,9,9,9,9,9,9,9,9,9,10,10,10,10,10,10,10,10,10,10,10,10,10,10,10,10,10,10,10,10,10,10,10,10,10,10,10,10,10,10,10,11,11,11,11,11,11,11,11,11,11,11,11,11,11,11,11,11,11,11,11,11,11,11,11,11,11,11,11,11,11,12,12,12,12,12,12,12,12,12,12,12,12,12,12,12,12,12,12,12,12,12,12,12,12,12,12,12,12,12,12,12,1]
[null,null,null,null,null,null,"год",2017,2017,2017,2017,2017,2017,2017,2017,2017,2017,2017,2017,2017,2017,2017,2017,2017,2017,2017,2017,2017,2017,2017,2017,2017,2017,2017,2017,2017,2017,2017,2017,2017,2017,2017,2017,2017,2017,2017,2017,2017,2017,2017,2017,2017,2017,2017,2017,2017,2017,2017,2017,2017,2017,2017,2017,2017,2017,2017,2017,2017,2017,2017,2017,2017,2017,2017,2017,2017,2017,2017,2017,2017,2017,2017,2017,2017,2017,2017,2017,2017,2017,2017,2017,2017,2017,2017,2017,2017,2017,2017,2017,2017,2017,2017,2017,2017,2017,2017,2017,2017,2017,2017,2017,2017,2017,2017,2017,2017,2017,2017,2017,2017,2017,2017,2017,2017,2017,2017,2017,2017,2017,2017,2017,2017,2017,2017,2017,2017,2017,2017,2017,2017,2017,2017,2017,2017,2017,2017,2017,2017,2017,2017,2017,2017,2017,2017,2017,2017,2017,2017,2017,2017,2017,2017,2017,2017,2017,2017,2017,2017,2017,2017,2017,2017,2017,2017,2017,2017,2017,2017,2017,2017,2017,2017,2017,2017,2017,2017,2017,2017,2017,2017,2017,2017,2017,2017,2017,2017,2017,2017,2017,2017,2017,2017,2017,2017,2017,2017,2017,2017,2017,2017,2017,2017,2017,2017,2017,2017,2017,2017,2017,2017,2017,2017,2017,2017,2017,2017,2017,2017,2017,2017,2017,2017,2017,2017,2017,2017,2017,2017,2017,2017,2017,2017,2017,2017,2017,2017,2017,2017,2017,2017,2017,2017,2017,2017,2017,2017,2017,2017,2017,2017,2017,2017,2017,2017,2017,2017,2017,2017,2017,2017,2017,2017,2017,2017,2017,2017,2017,2017,2017,2017,2017,2017,2017,2017,2017,2017,2017,2017,2017,2017,2017,2017,2017,2017,2017,2017,2017,2017,2017,2017,2017,2017,2017,2017,2017,2017,2017,2017,2017,2017,2017,2017,2017,2017,2017,2017,2017,2017,2017,2017,2017,2017,2017,2017,2017,2017,2017,2017,2017,2017,2017,2017,2017,2017,2017,2017,2017,2017,2017,2017,2017,2017,2017,2017,2017,2017,2017,2017,2017,2017,2017,2017,2017,2017,2017,2017,2017,2017,2017,2017,2017,2017,2017,2017,2017,2017,2017,2017,2017,2017,2017,2018]
[]
["ИТОГО",null,{"$f":"SMALL($C$22:$C$3484,2)","v":"2012-08-05"},2018,"Итого","руб.",{"$f":"D13&\"-\"&E13&\"-\"&F13","v":"2018-Итого-руб."},{"$f":"SUMIFS(H$22:H$3484,$D$22:$D$3484,$D13,$E$22:$E$3484,$E13,$F$22:$F$3484,$F13)","v":42984},636476,null,null,null,null,null,null,null,null,null,null,null,null,null,null,null,null,null,null,null,null,null,null,null,null,null,null,null,null,null,null,null,null,null,null,null,null,null,null,null,null,null,null,null,null,null,null,null,null,null,null,null,null,null,null,null,null,null,null,null,null,null,null,null,null,null,null,null,null,null,null,null,null,null,null,null,null,null,null,null,null,null,null,null,null,null,null,null,null,null,null,null,null,null,null,null,null,null,null,null,null,null,null,null,null,null,null,null,null,null,null,null,null,null,null,null,null,null,null,null,null,null,null,null,null,null,null,null,null,null,null,null,null,null,null,null,null,null,null,null,null,null,null,null,null,null,null,null,null,null,null,null,null,null,null,null,null,null,null,null,null,null,null,null,null,null,null,null,null,null,null,null,null,null,null,null,null,null,null,null,null,null,null,null,null,null,null,null,null,null,null,null,null,null,null,null,null,null,null,null,null,null,null,null,null,null,null,null,null,null,null,null,null,null,null,null,null,null,null,null,null,null,null,null,null,null,null,null,null,null,null,null,null,null,null,null,null,null,null,null,null,null,null,null,null,null,null,null,null,null,null,null,null,null,null,null,null,null,null,null,null,null,null,null,null,null,null,null,null,null,null,null,null,null,null,null,null,null,null,null,null,null,null,null,null,null,null,null,null,null,null,null,null,null,null,null,null,null,null,null,null,null,null,null,null,null,null,null,null,null,null,null,null,null,null,null,null,null,null,null,null,null,null,null,null,null,null,null,null,null,null,null,null,null,null,null,null,null,null,null,null,null,null,null,null,null,null,null,null,null,null,null,null,null,null,null,null,null,null,null,null,null,null,{"$f":"SUMIFS(NH$22:NH$3484,$D$22:$D$3484,$D13,$E$22:$E$3484,$E13,$F$22:$F$3484,$F13)","v":5208},null,{"$f":"SUMIF($H$3:$NH$3,NJ$3,$H13:$NH13)","v":679460},0,null,null,null,null,null,null,null,null,null,null,null,null,null,null,null,null,null,null,null,null,null,null,null,null,null,null,null,null,null,null,null,null,null,null,null,null,null,null,null,null,null,null,null,null,null,null,null,null,null,null,null,null,{"$f":"SUMIF($H$5:$NH$5,PL$5,$H13:$NH13)","v":679460},0,null,null,null,null,null,null,null,null,null,null,null,null,null,"*","*","*","*","*","*",null,"2017-02-24"]
["ИТОГО",null,{"$f":"SMALL($C$22:$C$3484,2)","v":"2012-08-05"},2018,"Розница","руб.",{"$f":"D14&\"-\"&E14&\"-\"&F14","v":"2018-Розница-руб."},36484,625476,null,null,null,null,null,null,null,null,null,null,null,null,null,null,null,null,null,null,null,null,null,null,null,null,null,null,null,null,null,null,null,null,null,null,null,null,null,null,null,null,null,null,null,null,null,null,null,null,null,null,null,null,null,null,null,null,null,null,null,null,null,null,null,null,null,null,null,null,null,null,null,null,null,null,null,null,null,null,null,null,null,null,null,null,null,null,null,null,null,null,null,null,null,null,null,null,null,null,null,null,null,null,null,null,null,null,null,null,null,null,null,null,null,null,null,null,null,null,null,null,null,null,null,null,null,null,null,null,null,null,null,null,null,null,null,null,null,null,null,null,null,null,null,null,null,null,null,null,null,null,null,null,null,null,null,null,null,null,null,null,null,null,null,null,null,null,null,null,null,null,null,null,null,null,null,null,null,null,null,null,null,null,null,null,null,null,null,null,null,null,null,null,null,null,null,null,null,null,null,null,null,null,null,null,null,null,null,null,null,null,null,null,null,null,null,null,null,null,null,null,null,null,null,null,null,null,null,null,null,null,null,null,null,null,null,null,null,null,null,null,null,null,null,null,null,null,null,null,null,null,null,null,null,null,null,null,null,null,null,null,null,null,null,null,null,null,null,null,null,null,null,null,null,null,null,null,null,null,null,null,null,null,null,null,null,null,null,null,null,null,null,null,null,null,null,null,null,null,null,null,null,null,null,null,null,null,null,null,null,null,null,null,null,null,null,null,null,null,null,null,null,null,null,null,null,null,null,null,null,null,null,null,null,null,null,null,null,null,null,null,null,null,null,null,null,null,null,null,null,null,null,null,null,null,null,null,null,null,null,null,null,null,4836,null,{"$f":"SUMIF($H$3:$NH$3,NJ$3,$H14:$NH14)","v":661960},0,null,null,null,null,null,null,null,null,null,null,null,null,null,null,null,null,null,null,null,null,null,null,null,null,null,null,null,null,null,null,null,null,null,null,null,null,null,null,null,null,null,null,null,null,null,null,null,null,null,null,null,null,{"$f":"SUMIF($H$5:$NH$5,PL$5,$H14:$NH14)","v":661960},0,null,null,null,null,null,null,null,null,null,null,null,"#",null,null,null,null,null,null,null,null,"2017-05-08"]
["ИТОГО",null,{"$f":"SMALL($C$22:$C$3484,2)","v":"2012-08-05"},2018,"Интернет-магазин","руб.","2018-Интернет-магазин-руб.",6500,11000,null,null,null,null,null,null,null,null,null,null,null,null,null,null,null,null,null,null,null,null,null,null,null,null,null,null,null,null,null,null,null,null,null,null,null,null,null,null,null,null,null,null,null,null,null,null,null,null,null,null,null,null,null,null,null,null,null,null,null,null,null,null,null,null,null,null,null,null,null,null,null,null,null,null,null,null,null,null,null,null,null,null,null,null,null,null,null,null,null,null,null,null,null,null,null,null,null,null,null,null,null,null,null,null,null,null,null,null,null,null,null,null,null,null,null,null,null,null,null,null,null,null,null,null,null,null,null,null,null,null,null,null,null,null,null,null,null,null,null,null,null,null,null,null,null,null,null,null,null,null,null,null,null,null,null,null,null,null,null,null,null,null,null,null,null,null,null,null,null,null,null,null,null,null,null,null,null,null,null,null,null,null,null,null,null,null,null,null,null,null,null,null,null,null,null,null,null,null,null,null,null,null,null,null,null,null,null,null,null,null,null,null,null,null,null,null,null,null,null,null,null,null,null,null,null,null,null,null,null,null,null,null,null,null,null,null,null,null,null,null,null,null,null,null,null,null,null,null,null,null,null,null,null,null,null,null,null,null,null,null,null,null,null,null,null,null,null,null,null,null,null,null,null,null,null,null,null,null,null,null,null,null,null,null,null,null,null,null,null,null,null,null,null,null,null,null,null,null,null,null,null,null,null,null,null,null,null,null,null,null,null,null,null,null,null,null,null,null,null,null,null,null,null,null,null,null,null,null,null,null,null,null,null,null,null,null,null,null,null,null,null,null,null,null,null,null,null,null,null,null,null,null,null,null,null,null,null,null,null,null,null,null,372,null,{"$f":"SUMIF($H$3:$NH$3,NJ$3,$H15:$NH15)","v":17500},0,null,null,null,null,null,null,null,null,null,null,null,null,null,null,null,null,null,null,null,null,null,null,null,null,null,null,null,null,null,null,null,null,null,null,null,null,null,null,null,null,null,null,null,null,null,null,null,null,null,null,null,null,{"$f":"SUMIF($H$5:$NH$5,PL$5,$H15:$NH15)","v":17500},0,null,null,null,null,null,null,null,null,null,null,null,null,null,null,null,null,null,null,null,null,"2017-11-06"]
["ИТОГО",null,{"$f":"SMALL($C$22:$C$3484,2)","v":"2012-08-05"},2017,"Итого","руб.","2017-Итого-руб.",15724557,13424987,null,null,null,null,null,null,null,null,null,null,null,null,null,null,null,null,null,null,null,null,null,null,null,null,null,null,null,null,null,null,null,null,null,null,null,null,null,null,null,null,null,null,null,null,null,null,null,null,null,null,null,null,null,null,null,null,null,null,null,null,null,null,null,null,null,null,null,null,null,null,null,null,null,null,null,null,null,null,null,null,null,null,null,null,null,null,null,null,null,null,null,null,null,null,null,null,null,null,null,null,null,null,null,null,null,null,null,null,null,null,null,null,null,null,null,null,null,null,null,null,null,null,null,null,null,null,null,null,null,null,null,null,null,null,null,null,null,null,null,null,null,null,null,null,null,null,null,null,null,null,null,null,null,null,null,null,null,null,null,null,null,null,null,null,null,null,null,null,null,null,null,null,null,null,null,null,null,null,null,null,null,null,null,null,null,null,null,null,null,null,null,null,null,null,null,null,null,null,null,null,null,null,null,null,null,null,null,null,null,null,null,null,null,null,null,null,null,null,null,null,null,null,null,null,null,null,null,null,null,null,null,null,null,null,null,null,null,null,null,null,null,null,null,null,null,null,null,null,null,null,null,null,null,null,null,null,null,null,null,null,null,null,null,null,null,null,null,null,null,null,null,null,null,null,null,null,null,null,null,null,null,null,null,null,null,null,null,null,null,null,null,null,null,null,null,null,null,null,null,null,null,null,null,null,null,null,null,null,null,null,null,null,null,null,null,null,null,null,null,null,null,null,null,null,null,null,null,null,null,null,null,null,null,null,null,null,null,null,null,null,null,null,null,null,null,null,null,null,null,null,null,null,null,null,null,null,null,null,null,null,null,null,0,null,2510695,{"$f":"SUMIF($H$8:$NH$8,NK$3,$H16:$NH16)","v":29149544},null,null,null,null,null,null,null,null,null,null,null,null,null,null,null,null,null,null,null,null,null,null,null,null,null,null,null,null,null,null,null,null,null,null,null,null,null,null,null,null,null,null,null,null,null,null,null,null,null,null,null,null,294656350.28999996,{"$f":"SUMIF($H$10:$NH$10,PM$5,$H16:$NH16)","v":0},null,null,null,null,null,null,null,null,null,null,null,null,null,null,null,null,null,null,null,null,"2018-06-12"]
["ИТОГО",null,{"$f":"SMALL($C$22:$C$3484,2)","v":"2012-08-05"},2017,"Розница","руб.","2017-Розница-руб.",13466949,11265452,null,null,null,null,null,null,null,null,null,null,null,null,null,null,null,null,null,null,null,null,null,null,null,null,null,null,null,null,null,null,null,null,null,null,null,null,null,null,null,null,null,null,null,null,null,null,null,null,null,null,null,null,null,null,null,null,null,null,null,null,null,null,null,null,null,null,null,null,null,null,null,null,null,null,null,null,null,null,null,null,null,null,null,null,null,null,null,null,null,null,null,null,null,null,null,null,null,null,null,null,null,null,null,null,null,null,null,null,null,null,null,null,null,null,null,null,null,null,null,null,null,null,null,null,null,null,null,null,null,null,null,null,null,null,null,null,null,null,null,null,null,null,null,null,null,null,null,null,null,null,null,null,null,null,null,null,null,null,null,null,null,null,null,null,null,null,null,null,null,null,null,null,null,null,null,null,null,null,null,null,null,null,null,null,null,null,null,null,null,null,null,null,null,null,null,null,null,null,null,null,null,null,null,null,null,null,null,null,null,null,null,null,null,null,null,null,null,null,null,null,null,null,null,null,null,null,null,null,null,null,null,null,null,null,null,null,null,null,null,null,null,null,null,null,null,null,null,null,null,null,null,null,null,null,null,null,null,null,null,null,null,null,null,null,null,null,null,null,null,null,null,null,null,null,null,null,null,null,null,null,null,null,null,null,null,null,null,null,null,null,null,null,null,null,null,null,null,null,null,null,null,null,null,null,null,null,null,null,null,null,null,null,null,null,null,null,null,null,null,null,null,null,null,null,null,null,null,null,null,null,null,null,null,null,null,null,null,null,null,null,null,null,null,null,null,null,null,null,null,null,null,null,null,null,null,null,null,null,null,null,null,null,0,null,2347154,{"$f":"SUMIF($H$8:$NH$8,NK$3,$H17:$NH17)","v":24732401},null,null,null,null,null,null,null,null,null,null,null,null,null,null,null,null,null,null,null,null,null,null,null,null,null,null,null,null,null,null,null,null,null,null,null,null,null,null,null,null,null,null,null,null,null,null,null,null,null,null,null,null,211294656.72999999,{"$f":"SUMIF($H$10:$NH$10,PM$5,$H17:$NH17)","v":0},null,null,null,null,null,null,null,null,null,null,null,"?"]
["ИТОГО",null,"2013-01-01",2017,"Интернет-магазин","руб.",{"$f":"D18&\"-\"&E18&\"-\"&F18","v":"2017-Интернет-магазин-руб."},0,0,null,null,null,null,null,null,null,null,null,null,null,null,null,null,null,null,null,null,null,null,null,null,null,null,null,null,null,null,null,null,null,null,null,null,null,null,null,null,null,null,null,null,null,null,null,null,null,null,null,null,null,null,null,null,null,null,null,null,null,null,null,null,null,null,null,null,null,null,null,null,null,null,null,null,null,null,null,null,null,null,null,null,null,null,null,null,null,null,null,null,null,null,null,null,null,null,null,null,null,null,null,null,null,null,null,null,null,null,null,null,null,null,null,null,null,null,null,null,null,null,null,null,null,null,null,null,null,null,null,null,null,null,null,null,null,null,null,null,null,null,null,null,null,null,null,null,null,null,null,null,null,null,null,null,null,null,null,null,null,null,null,null,null,null,null,null,null,null,null,null,null,null,null,null,null,null,null,null,null,null,null,null,null,null,null,null,null,null,null,null,null,null,null,null,null,null,null,null,null,null,null,null,null,null,null,null,null,null,null,null,null,null,null,null,null,null,null,null,null,null,null,null,null,null,null,null,null,null,null,null,null,null,null,null,null,null,null,null,null,null,null,null,null,null,null,null,null,null,null,null,null,null,null,null,null,null,null,null,null,null,null,null,null,null,null,null,null,null,null,null,null,null,null,null,null,null,null,null,null,null,null,null,null,null,null,null,null,null,null,null,null,null,null,null,null,null,null,null,null,null,null,null,null,null,null,null,null,null,null,null,null,null,null,null,null,null,null,null,null,null,null,null,null,null,null,null,null,null,null,null,null,null,null,null,null,null,null,null,null,null,null,null,null,null,null,null,null,null,null,null,null,null,null,null,null,null,null,null,null,null,null,null,0,null,{"$f":"SUMIF($H$3:$NH$3,NJ$3,$H18:$NH18)","v":0},0,null,null,null,null,null,null,null,null,null,null,null,null,null,null,null,null,null,null,null,null,null,null,null,null,null,null,null,null,null,null,null,null,null,null,null,null,null,null,null,null,null,null,null,null,null,null,null,null,null,null,null,null,{"$f":"SUMIF($H$5:$NH$5,PL$5,$H18:$NH18)","v":0},0]
["ИТОГО",null,{"$f":"SMALL($C$22:$C$3484,2)","v":"2012-08-05"},"2018/2017","Итого","руб.","2018/2017-Итого-руб.",{"$f":"IF(H16=0,0,H13/H16)","v":2.7335587260105326E-3},4.740980382327372E-2,null,null,null,null,null,null,null,null,null,null,null,null,null,null,null,null,null,null,null,null,null,null,null,null,null,null,null,null,null,null,null,null,null,null,null,null,null,null,null,null,null,null,null,null,null,null,null,null,null,null,null,null,null,null,null,null,null,null,null,null,null,null,null,null,null,null,null,null,null,null,null,null,null,null,null,null,null,null,null,null,null,null,null,null,null,null,null,null,null,null,null,null,null,null,null,null,null,null,null,null,null,null,null,null,null,null,null,null,null,null,null,null,null,null,null,null,null,null,null,null,null,null,null,null,null,null,null,null,null,null,null,null,null,null,null,null,null,null,null,null,null,null,null,null,null,null,null,null,null,null,null,null,null,null,null,null,null,null,null,null,null,null,null,null,null,null,null,null,null,null,null,null,null,null,null,null,null,null,null,null,null,null,null,null,null,null,null,null,null,null,null,null,null,null,null,null,null,null,null,null,null,null,null,null,null,null,null,null,null,null,null,null,null,null,null,null,null,null,null,null,null,null,null,null,null,null,null,null,null,null,null,null,null,null,null,null,null,null,null,null,null,null,null,null,null,null,null,null,null,null,null,null,null,null,null,null,null,null,null,null,null,null,null,null,null,null,null,null,null,null,null,null,null,null,null,null,null,null,null,null,null,null,null,null,null,null,null,null,null,null,null,null,null,null,null,null,null,null,null,null,null,null,null,null,null,null,null,null,null,null,null,null,null,null,null,null,null,null,null,null,null,null,null,null,null,null,null,null,null,null,null,null,null,null,null,null,null,null,null,null,null,null,null,null,null,null,null,null,null,null,null,null,null,null,null,null,null,null,null,null,null,null,{"$f":"IF(NH16=0,0,NH13/NH16)","v":0},null,{"$f":"IF(NJ16=0,0,NJ13/NJ16)*IF(VALUE(RIGHT($A$1,10))<VALUE(RIGHT(NJ$2,8)),7/WEEKDAY(RIGHT($A$1,10),2),1)","v":0.94719191299620231},{"$f":"IF(NK16=0,0,NK13/NK16)*IF(VALUE(RIGHT($A$1,10))<VALUE(RIGHT(NK$2,8)),7/WEEKDAY(RIGHT($A$1,10),2),1)","v":0},null,null,null,null,null,null,null,null,null,null,null,null,null,null,null,null,null,null,null,null,null,null,null,null,null,null,null,null,null,null,null,null,null,null,null,null,null,null,null,null,null,null,null,null,null,null,null,null,null,null,null,null,{"$f":"IF(PL16=0,0,PL13/PL16)*IF(VALUE(RIGHT($A$1,10))<EOMONTH(PL$2,0),DAY(EOMONTH(PL$2,0))/DAY(VALUE(RIGHT($A$1,10))),1)","v":3.5742077133701006E-2},{"$f":"IF(PM16=0,0,PM13/PM16)*IF(VALUE(RIGHT($A$1,10))<EOMONTH(PM$2,0),DAY(EOMONTH(PM$2,0))/DAY(VALUE(RIGHT($A$1,10))),1)","v":0}]
["ИТОГО",null,{"$f":"SMALL($C$22:$C$3484,2)","v":"2012-08-05"},"2018/2017","Розница","руб.","2018/2017-Розница-руб.",2.7091511224999814E-3,5.5521607122377338E-2,null,null,null,null,null,null,null,null,null,null,null,null,null,null,null,null,null,null,null,null,null,null,null,null,null,null,null,null,null,null,null,null,null,null,null,null,null,null,null,null,null,null,null,null,null,null,null,null,null,null,null,null,null,null,null,null,null,null,null,null,null,null,null,null,null,null,null,null,null,null,null,null,null,null,null,null,null,null,null,null,null,null,null,null,null,null,null,null,null,null,null,null,null,null,null,null,null,null,null,null,null,null,null,null,null,null,null,null,null,null,null,null,null,null,null,null,null,null,null,null,null,null,null,null,null,null,null,null,null,null,null,null,null,null,null,null,null,null,null,null,null,null,null,null,null,null,null,null,null,null,null,null,null,null,null,null,null,null,null,null,null,null,null,null,null,null,null,null,null,null,null,null,null,null,null,null,null,null,null,null,null,null,null,null,null,null,null,null,null,null,null,null,null,null,null,null,null,null,null,null,null,null,null,null,null,null,null,null,null,null,null,null,null,null,null,null,null,null,null,null,null,null,null,null,null,null,null,null,null,null,null,null,null,null,null,null,null,null,null,null,null,null,null,null,null,null,null,null,null,null,null,null,null,null,null,null,null,null,null,null,null,null,null,null,null,null,null,null,null,null,null,null,null,null,null,null,null,null,null,null,null,null,null,null,null,null,null,null,null,null,null,null,null,null,null,null,null,null,null,null,null,null,null,null,null,null,null,null,null,null,null,null,null,null,null,null,null,null,null,null,null,null,null,null,null,null,null,null,null,null,null,null,null,null,null,null,null,null,null,null,null,null,null,null,null,null,null,null,null,null,null,null,null,null,null,null,null,null,null,null,null,null,{"$f":"IF(NH17=0,0,NH14/NH17)","v":0},null,{"$f":"IF(NJ17=0,0,NJ14/NJ17)*IF(VALUE(RIGHT($A$1,10))<VALUE(RIGHT(NJ$2,8)),7/WEEKDAY(RIGHT($A$1,10),2),1)","v":0.98709330533914696},{"$f":"IF(NK17=0,0,NK14/NK17)*IF(VALUE(RIGHT($A$1,10))<VALUE(RIGHT(NK$2,8)),7/WEEKDAY(RIGHT($A$1,10),2),1)","v":0},null,null,null,null,null,null,null,null,null,null,null,null,null,null,null,null,null,null,null,null,null,null,null,null,null,null,null,null,null,null,null,null,null,null,null,null,null,null,null,null,null,null,null,null,null,null,null,null,null,null,null,null,{"$f":"IF(PL17=0,0,PL14/PL17)*IF(VALUE(RIGHT($A$1,10))<EOMONTH(PL$2,0),DAY(EOMONTH(PL$2,0))/DAY(VALUE(RIGHT($A$1,10))),1)","v":4.8559581007820214E-2},{"$f":"IF(PM17=0,0,PM14/PM17)*IF(VALUE(RIGHT($A$1,10))<EOMONTH(PM$2,0),DAY(EOMONTH(PM$2,0))/DAY(VALUE(RIGHT($A$1,10))),1)","v":0},null,null,null,null,null,null,null,null,null,null,null,"№"]
["ИТОГО",null,"2013-01-01","2018/2017","Интернет-магазин","руб.",{"$f":"D21&\"-\"&E21&\"-\"&F21","v":"2018/2017-Интернет-магазин-руб."},0,0,null,null,null,null,null,null,null,null,null,null,null,null,null,null,null,null,null,null,null,null,null,null,null,null,null,null,null,null,null,null,null,null,null,null,null,null,null,null,null,null,null,null,null,null,null,null,null,null,null,null,null,null,null,null,null,null,null,null,null,null,null,null,null,null,null,null,null,null,null,null,null,null,null,null,null,null,null,null,null,null,null,null,null,null,null,null,null,null,null,null,null,null,null,null,null,null,null,null,null,null,null,null,null,null,null,null,null,null,null,null,null,null,null,null,null,null,null,null,null,null,null,null,null,null,null,null,null,null,null,null,null,null,null,null,null,null,null,null,null,null,null,null,null,null,null,null,null,null,null,null,null,null,null,null,null,null,null,null,null,null,null,null,null,null,null,null,null,null,null,null,null,null,null,null,null,null,null,null,null,null,null,null,null,null,null,null,null,null,null,null,null,null,null,null,null,null,null,null,null,null,null,null,null,null,null,null,null,null,null,null,null,null,null,null,null,null,null,null,null,null,null,null,null,null,null,null,null,null,null,null,null,null,null,null,null,null,null,null,null,null,null,null,null,null,null,null,null,null,null,null,null,null,null,null,null,null,null,null,null,null,null,null,null,null,null,null,null,null,null,null,null,null,null,null,null,null,null,null,null,null,null,null,null,null,null,null,null,null,null,null,null,null,null,null,null,null,null,null,null,null,null,null,null,null,null,null,null,null,null,null,null,null,null,null,null,null,null,null,null,null,null,null,null,null,null,null,null,null,null,null,null,null,null,null,null,null,null,null,null,null,null,null,null,null,null,null,null,null,null,null,null,null,null,null,null,null,null,null,null,null,null,null,{"$f":"IF(NH18=0,0,NH15/NH18)","v":0},null,{"$f":"SUMIF($H$3:$NH$3,NJ$3,$H21:$NH21)","v":0},0,null,null,null,null,null,null,null,null,null,null,null,null,null,null,null,null,null,null,null,null,null,null,null,null,null,null,null,null,null,null,null,null,null,null,null,null,null,null,null,null,null,null,null,null,null,null,null,null,null,null,null,null,{"$f":"SUMIF($H$5:$NH$5,PL$5,$H21:$NH21)","v":0},0]
["Санкт-Петербург",{"$f":"INDEX('Адреса объектов'!$H$13:$I$143,MATCH(ИТОГ!$A22,'Адреса объектов'!$I$13:$I$25,0),1)","v":"СЗФО"},{"$f":"MIN(IF(('Адреса объектов'!$I$13:$I$299=$A22)*('Адреса объектов'!$L$13:$L$299>0),'Адреса объектов'!$L$13:$L$299,\"\"))","v":"2012-08-05"},{"$f":"YEAR($H$2)","v":2018},"Итого","руб.","2018-Итого-руб.",{"$f":"SUM(H23,H24)","v":25628},{"$f":"SUM(I23,I24)","v":229192},null,null,null,null,null,null,null,null,null,null,null,null,null,null,null,null,null,null,null,null,null,null,null,null,null,null,null,null,null,null,null,null,null,null,null,null,null,null,null,null,null,null,null,null,null,null,null,null,null,null,null,null,null,null,null,null,null,null,null,null,null,null,null,null,null,null,null,null,null,null,null,null,null,null,null,null,null,null,null,null,null,null,null,null,null,null,null,null,null,null,null,null,null,null,null,null,null,null,null,null,null,null,null,null,null,null,null,null,null,null,null,null,null,null,null,null,null,null,null,null,null,null,null,null,null,null,null,null,null,null,null,null,null,null,null,null,null,null,null,null,null,null,null,null,null,null,null,null,null,null,null,null,null,null,null,null,null,null,null,null,null,null,null,null,null,null,null,null,null,null,null,null,null,null,null,null,null,null,null,null,null,null,null,null,null,null,null,null,null,null,null,null,null,null,null,null,null,null,null,null,null,null,null,null,null,null,null,null,null,null,null,null,null,null,null,null,null,null,null,null,null,null,null,null,null,null,null,null,null,null,null,null,null,null,null,null,null,null,null,null,null,null,null,null,null,null,null,null,null,null,null,null,null,null,null,null,null,null,null,null,null,null,null,null,null,null,null,null,null,null,null,null,null,null,null,null,null,null,null,null,null,null,null,null,null,null,null,null,null,null,null,null,null,null,null,null,null,null,null,null,null,null,null,null,null,null,null,null,null,null,null,null,null,null,null,null,null,null,null,null,null,null,null,null,null,null,null,null,null,null,null,null,null,null,null,null,null,null,null,null,null,null,null,null,null,null,null,null,null,null,null,null,null,null,null,null,null,null,null,null,null,null,{"$f":"SUM(NH23,NH24)","v":5208},null,{"$f":"SUMIF($H$3:$NH$3,NJ$3,$H22:$NH22)","v":254820},0,null,null,null,null,null,null,null,null,null,null,null,null,null,null,null,null,null,null,null,null,null,null,null,null,null,null,null,null,null,null,null,null,null,null,null,null,null,null,null,null,null,null,null,null,null,null,null,null,null,null,null,null,{"$f":"SUMIF($H$5:$NH$5,PL$5,$H22:$NH22)","v":254820},0,null,null,null,null,null,null,null,null,null,null,null,null,null,"*","*","*","*","*","*"]
[{"$f":"A22","v":"Санкт-Петербург"},"СЗФО","2012-08-05",2018,"Розница","руб.","2018-Розница-руб.",25128,228492,null,null,null,null,null,null,null,null,null,null,null,null,null,null,null,null,null,null,null,null,null,null,null,null,null,null,null,null,null,null,null,null,null,null,null,null,null,null,null,null,null,null,null,null,null,null,null,null,null,null,null,null,null,null,null,null,null,null,null,null,null,null,null,null,null,null,null,null,null,null,null,null,null,null,null,null,null,null,null,null,null,null,null,null,null,null,null,null,null,null,null,null,null,null,null,null,null,null,null,null,null,null,null,null,null,null,null,null,null,null,null,null,null,null,null,null,null,null,null,null,null,null,null,null,null,null,null,null,null,null,null,null,null,null,null,null,null,null,null,null,null,null,null,null,null,null,null,null,null,null,null,null,null,null,null,null,null,null,null,null,null,null,null,null,null,null,null,null,null,null,null,null,null,null,null,null,null,null,null,null,null,null,null,null,null,null,null,null,null,null,null,null,null,null,null,null,null,null,null,null,null,null,null,null,null,null,null,null,null,null,null,null,null,null,null,null,null,null,null,null,null,null,null,null,null,null,null,null,null,null,null,null,null,null,null,null,null,null,null,null,null,null,null,null,null,null,null,null,null,null,null,null,null,null,null,null,null,null,null,null,null,null,null,null,null,null,null,null,null,null,null,null,null,null,null,null,null,null,null,null,null,null,null,null,null,null,null,null,null,null,null,null,null,null,null,null,null,null,null,null,null,null,null,null,null,null,null,null,null,null,null,null,null,null,null,null,null,null,null,null,null,null,null,null,null,null,null,null,null,null,null,null,null,null,null,null,null,null,null,null,null,null,null,null,null,null,null,null,null,null,null,null,null,null,null,null,null,null,null,null,null,null,{"$f":"COLUMN(NH$2)*13","v":4836},null,{"$f":"SUMIF($H$3:$NH$3,NJ$3,$H23:$NH23)","v":253620},0,null,null,null,null,null,null,null,null,null,null,null,null,null,null,null,null,null,null,null,null,null,null,null,null,null,null,null,null,null,null,null,null,null,null,null,null,null,null,null,null,null,null,null,null,null,null,null,null,null,null,null,null,{"$f":"SUMIF($H$5:$NH$5,PL$5,$H23:$NH23)","v":253620},0,null,null,null,null,null,null,null,null,null,null,null,"#"]
["Санкт-Петербург","СЗФО","2012-08-05",2018,"Интернет-магазин","руб.",{"$f":"D24&\"-\"&E24&\"-\"&F24","v":"2018-Интернет-магазин-руб."},500,700,null,null,null,null,null,null,null,null,null,null,null,null,null,null,null,null,null,null,null,null,null,null,null,null,null,null,null,null,null,null,null,null,null,null,null,null,null,null,null,null,null,null,null,null,null,null,null,null,null,null,null,null,null,null,null,null,null,null,null,null,null,null,null,null,null,null,null,null,null,null,null,null,null,null,null,null,null,null,null,null,null,null,null,null,null,null,null,null,null,null,null,null,null,null,null,null,null,null,null,null,null,null,null,null,null,null,null,null,null,null,null,null,null,null,null,null,null,null,null,null,null,null,null,null,null,null,null,null,null,null,null,null,null,null,null,null,null,null,null,null,null,null,null,null,null,null,null,null,null,null,null,null,null,null,null,null,null,null,null,null,null,null,null,null,null,null,null,null,null,null,null,null,null,null,null,null,null,null,null,null,null,null,null,null,null,null,null,null,null,null,null,null,null,null,null,null,null,null,null,null,null,null,null,null,null,null,null,null,null,null,null,null,null,null,null,null,null,null,null,null,null,null,null,null,null,null,null,null,null,null,null,null,null,null,null,null,null,null,null,null,null,null,null,null,null,null,null,null,null,null,null,null,null,null,null,null,null,null,null,null,null,null,null,null,null,null,null,null,null,null,null,null,null,null,null,null,null,null,null,null,null,null,null,null,null,null,null,null,null,null,null,null,null,null,null,null,null,null,null,null,null,null,null,null,null,null,null,null,null,null,null,null,null,null,null,null,null,null,null,null,null,null,null,null,null,null,null,null,null,null,null,null,null,null,null,null,null,null,null,null,null,null,null,null,null,null,null,null,null,null,null,null,null,null,null,null,null,null,null,null,null,null,{"$f":"COLUMN(NH$2)","v":372},null,{"$f":"SUMIF($H$3:$NH$3,NJ$3,$H24:$NH24)","v":1200},0,null,null,null,null,null,null,null,null,null,null,null,null,null,null,null,null,null,null,null,null,null,null,null,null,null,null,null,null,null,null,null,null,null,null,null,null,null,null,null,null,null,null,null,null,null,null,null,null,null,null,null,null,{"$f":"SUMIF($H$5:$NH$5,PL$5,$H24:$NH24)","v":1200},0]
[{"$f":"A24","v":"Санкт-Петербург"},{"$f":"B24","v":"СЗФО"},{"$f":"C24","v":"2012-08-05"},{"$f":"D22-1","v":2017},"Итого","руб.","2017-Итого-руб.",3731846,3345138,null,null,null,null,null,null,null,null,null,null,null,null,null,null,null,null,null,null,null,null,null,null,null,null,null,null,null,null,null,null,null,null,null,null,null,null,null,null,null,null,null,null,null,null,null,null,null,null,null,null,null,null,null,null,null,null,null,null,null,null,null,null,null,null,null,null,null,null,null,null,null,null,null,null,null,null,null,null,null,null,null,null,null,null,null,null,null,null,null,null,null,null,null,null,null,null,null,null,null,null,null,null,null,null,null,null,null,null,null,null,null,null,null,null,null,null,null,null,null,null,null,null,null,null,null,null,null,null,null,null,null,null,null,null,null,null,null,null,null,null,null,null,null,null,null,null,null,null,null,null,null,null,null,null,null,null,null,null,null,null,null,null,null,null,null,null,null,null,null,null,null,null,null,null,null,null,null,null,null,null,null,null,null,null,null,null,null,null,null,null,null,null,null,null,null,null,null,null,null,null,null,null,null,null,null,null,null,null,null,null,null,null,null,null,null,null,null,null,null,null,null,null,null,null,null,null,null,null,null,null,null,null,null,null,null,null,null,null,null,null,null,null,null,null,null,null,null,null,null,null,null,null,null,null,null,null,null,null,null,null,null,null,null,null,null,null,null,null,null,null,null,null,null,null,null,null,null,null,null,null,null,null,null,null,null,null,null,null,null,null,null,null,null,null,null,null,null,null,null,null,null,null,null,null,null,null,null,null,null,null,null,null,null,null,null,null,null,null,null,null,null,null,null,null,null,null,null,null,null,null,null,null,null,null,null,null,null,null,null,null,null,null,null,null,null,null,null,null,null,null,null,null,null,null,null,null,null,null,null,null,null,null,0,null,211395,{"$f":"SUMIF($H$8:$NH$8,NK$3,$H25:$NH25)","v":7076984},null,null,null,null,null,null,null,null,null,null,null,null,null,null,null,null,null,null,null,null,null,null,null,null,null,null,null,null,null,null,null,null,null,null,null,null,null,null,null,null,null,null,null,null,null,null,null,null,null,null,null,null,86938328.510000005,{"$f":"SUMIF($H$10:$NH$10,PM$5,$H25:$NH25)","v":0}]
["Санкт-Петербург","СЗФО","2012-08-05",{"$f":"D25","v":2017},"Розница","руб.","2017-Розница-руб.",298908,208457,null,null,null,null,null,null,null,null,null,null,null,null,null,null,null,null,null,null,null,null,null,null,null,null,null,null,null,null,null,null,null,null,null,null,null,null,null,null,null,null,null,null,null,null,null,null,null,null,null,null,null,null,null,null,null,null,null,null,null,null,null,null,null,null,null,null,null,null,null,null,null,null,null,null,null,null,null,null,null,null,null,null,null,null,null,null,null,null,null,null,null,null,null,null,null,null,null,null,null,null,null,null,null,null,null,null,null,null,null,null,null,null,null,null,null,null,null,null,null,null,null,null,null,null,null,null,null,null,null,null,null,null,null,null,null,null,null,null,null,null,null,null,null,null,null,null,null,null,null,null,null,null,null,null,null,null,null,null,null,null,null,null,null,null,null,null,null,null,null,null,null,null,null,null,null,null,null,null,null,null,null,null,null,null,null,null,null,null,null,null,null,null,null,null,null,null,null,null,null,null,null,null,null,null,null,null,null,null,null,null,null,null,null,null,null,null,null,null,null,null,null,null,null,null,null,null,null,null,null,null,null,null,null,null,null,null,null,null,null,null,null,null,null,null,null,null,null,null,null,null,null,null,null,null,null,null,null,null,null,null,null,null,null,null,null,null,null,null,null,null,null,null,null,null,null,null,null,null,null,null,null,null,null,null,null,null,null,null,null,null,null,null,null,null,null,null,null,null,null,null,null,null,null,null,null,null,null,null,null,null,null,null,null,null,null,null,null,null,null,null,null,null,null,null,null,null,null,null,null,null,null,null,null,null,null,null,null,null,null,null,null,null,null,null,null,null,null,null,null,null,null,null,null,null,null,null,null,null,null,null,null,null,0,null,158879,{"$f":"SUMIF($H$8:$NH$8,NK$3,$H26:$NH26)","v":507365},null,null,null,null,null,null,null,null,null,null,null,null,null,null,null,null,null,null,null,null,null,null,null,null,null,null,null,null,null,null,null,null,null,null,null,null,null,null,null,null,null,null,null,null,null,null,null,null,null,null,null,null,52110740.969999999,{"$f":"SUMIF($H$10:$NH$10,PM$5,$H26:$NH26)","v":0},null,null,null,null,null,null,null,null,null,null,null,"?"]
["Санкт-Петербург","СЗФО","2012-08-05",{"$f":"D26","v":2017},"Интернет-магазин","руб.",{"$f":"D27&\"-\"&E27&\"-\"&F27","v":"2017-Интернет-магазин-руб."},0,0,null,null,null,null,null,null,null,null,null,null,null,null,null,null,null,null,null,null,null,null,null,null,null,null,null,null,null,null,null,null,null,null,null,null,null,null,null,null,null,null,null,null,null,null,null,null,null,null,null,null,null,null,null,null,null,null,null,null,null,null,null,null,null,null,null,null,null,null,null,null,null,null,null,null,null,null,null,null,null,null,null,null,null,null,null,null,null,null,null,null,null,null,null,null,null,null,null,null,null,null,null,null,null,null,null,null,null,null,null,null,null,null,null,null,null,null,null,null,null,null,null,null,null,null,null,null,null,null,null,null,null,null,null,null,null,null,null,null,null,null,null,null,null,null,null,null,null,null,null,null,null,null,null,null,null,null,null,null,null,null,null,null,null,null,null,null,null,null,null,null,null,null,null,null,null,null,null,null,null,null,null,null,null,null,null,null,null,null,null,null,null,null,null,null,null,null,null,null,null,null,null,null,null,null,null,null,null,null,null,null,null,null,null,null,null,null,null,null,null,null,null,null,null,null,null,null,null,null,null,null,null,null,null,null,null,null,null,null,null,null,null,null,null,null,null,null,null,null,null,null,null,null,null,null,null,null,null,null,null,null,null,null,null,null,null,null,null,null,null,null,null,null,null,null,null,null,null,null,null,null,null,null,null,null,null,null,null,null,null,null,null,null,null,null,null,null,null,null,null,null,null,null,null,null,null,null,null,null,null,null,null,null,null,null,null,null,null,null,null,null,null,null,null,null,null,null,null,null,null,null,null,null,null,null,null,null,null,null,null,null,null,null,null,null,null,null,null,null,null,null,null,null,null,null,null,null,null,null,null,null,null,null,0,null,{"$f":"SUMIF($H$3:$NH$3,NJ$3,$H27:$NH27)","v":0},0,null,null,null,null,null,null,null,null,null,null,null,null,null,null,null,null,null,null,null,null,null,null,null,null,null,null,null,null,null,null,null,null,null,null,null,null,null,null,null,null,null,null,null,null,null,null,null,null,null,null,null,null,{"$f":"SUMIF($H$5:$NH$5,PL$5,$H27:$NH27)","v":0},0]
["Санкт-Петербург","СЗФО","2012-08-05",{"$f":"D22&\"/\"&D25","v":"2018/2017"},"Итого","руб.","2018/2017-Итого-руб.",{"$f":"IF(H25=0,0,H22/H25)","v":6.867378771792834E-3},6.8514961116701315E-2,null,null,null,null,null,null,null,null,null,null,null,null,null,null,null,null,null,null,null,null,null,null,null,null,null,null,null,null,null,null,null,null,null,null,null,null,null,null,null,null,null,null,null,null,null,null,null,null,null,null,null,null,null,null,null,null,null,null,null,null,null,null,null,null,null,null,null,null,null,null,null,null,null,null,null,null,null,null,null,null,null,null,null,null,null,null,null,null,null,null,null,null,null,null,null,null,null,null,null,null,null,null,null,null,null,null,null,null,null,null,null,null,null,null,null,null,null,null,null,null,null,null,null,null,null,null,null,null,null,null,null,null,null,null,null,null,null,null,null,null,null,null,null,null,null,null,null,null,null,null,null,null,null,null,null,null,null,null,null,null,null,null,null,null,null,null,null,null,null,null,null,null,null,null,null,null,null,null,null,null,null,null,null,null,null,null,null,null,null,null,null,null,null,null,null,null,null,null,null,null,null,null,null,null,null,null,null,null,null,null,null,null,null,null,null,null,null,null,null,null,null,null,null,null,null,null,null,null,null,null,null,null,null,null,null,null,null,null,null,null,null,null,null,null,null,null,null,null,null,null,null,null,null,null,null,null,null,null,null,null,null,null,null,null,null,null,null,null,null,null,null,null,null,null,null,null,null,null,null,null,null,null,null,null,null,null,null,null,null,null,null,null,null,null,null,null,null,null,null,null,null,null,null,null,null,null,null,null,null,null,null,null,null,null,null,null,null,null,null,null,null,null,null,null,null,null,null,null,null,null,null,null,null,null,null,null,null,null,null,null,null,null,null,null,null,null,null,null,null,null,null,null,null,null,null,null,null,null,null,null,null,null,{"$f":"IF(NH25=0,0,NH22/NH25)","v":0},null,{"$f":"IF(NJ25=0,0,NJ22/NJ25)*IF(VALUE(RIGHT($A$1,10))<VALUE(RIGHT(NJ$2,8)),7/WEEKDAY(RIGHT($A$1,10),2),1)","v":4.218973958702902},{"$f":"IF(NK25=0,0,NK22/NK25)*IF(VALUE(RIGHT($A$1,10))<VALUE(RIGHT(NK$2,8)),7/WEEKDAY(RIGHT($A$1,10),2),1)","v":0},null,null,null,null,null,null,null,null,null,null,null,null,null,null,null,null,null,null,null,null,null,null,null,null,null,null,null,null,null,null,null,null,null,null,null,null,null,null,null,null,null,null,null,null,null,null,null,null,null,null,null,null,{"$f":"IF(PL25=0,0,PL22/PL25)*IF(VALUE(RIGHT($A$1,10))<EOMONTH(PL$2,0),DAY(EOMONTH(PL$2,0))/DAY(VALUE(RIGHT($A$1,10))),1)","v":4.5431170206426133E-2},{"$f":"IF(PM25=0,0,PM22/PM25)*IF(VALUE(RIGHT($A$1,10))<EOMONTH(PM$2,0),DAY(EOMONTH(PM$2,0))/DAY(VALUE(RIGHT($A$1,10))),1)","v":0}]
["Санкт-Петербург","СЗФО","2012-08-05","2018/2017","Розница","руб.","2018/2017-Розница-руб.",8.4066000240876793E-2,1.0961109485409462,null,null,null,null,null,null,null,null,null,null,null,null,null,null,null,null,null,null,null,null,null,null,null,null,null,null,null,null,null,null,null,null,null,null,null,null,null,null,null,null,null,null,null,null,null,null,null,null,null,null,null,null,null,null,null,null,null,null,null,null,null,null,null,null,null,null,null,null,null,null,null,null,null,null,null,null,null,null,null,null,null,null,null,null,null,null,null,null,null,null,null,null,null,null,null,null,null,null,null,null,null,null,null,null,null,null,null,null,null,null,null,null,null,null,null,null,null,null,null,null,null,null,null,null,null,null,null,null,null,null,null,null,null,null,null,null,null,null,null,null,null,null,null,null,null,null,null,null,null,null,null,null,null,null,null,null,null,null,null,null,null,null,null,null,null,null,null,null,null,null,null,null,null,null,null,null,null,null,null,null,null,null,null,null,null,null,null,null,null,null,null,null,null,null,null,null,null,null,null,null,null,null,null,null,null,null,null,null,null,null,null,null,null,null,null,null,null,null,null,null,null,null,null,null,null,null,null,null,null,null,null,null,null,null,null,null,null,null,null,null,null,null,null,null,null,null,null,null,null,null,null,null,null,null,null,null,null,null,null,null,null,null,null,null,null,null,null,null,null,null,null,null,null,null,null,null,null,null,null,null,null,null,null,null,null,null,null,null,null,null,null,null,null,null,null,null,null,null,null,null,null,null,null,null,null,null,null,null,null,null,null,null,null,null,null,null,null,null,null,null,null,null,null,null,null,null,null,null,null,null,null,null,null,null,null,null,null,null,null,null,null,null,null,null,null,null,null,null,null,null,null,null,null,null,null,null,null,null,null,null,null,null,{"$f":"IF(NH26=0,0,NH23/NH26)","v":0},null,{"$f":"IF(NJ26=0,0,NJ23/NJ26)*IF(VALUE(RIGHT($A$1,10))<VALUE(RIGHT(NJ$2,8)),7/WEEKDAY(RIGHT($A$1,10),2),1)","v":5.5870819932149622},{"$f":"IF(NK26=0,0,NK23/NK26)*IF(VALUE(RIGHT($A$1,10))<VALUE(RIGHT(NK$2,8)),7/WEEKDAY(RIGHT($A$1,10),2),1)","v":0},null,null,null,null,null,null,null,null,null,null,null,null,null,null,null,null,null,null,null,null,null,null,null,null,null,null,null,null,null,null,null,null,null,null,null,null,null,null,null,null,null,null,null,null,null,null,null,null,null,null,null,null,{"$f":"IF(PL26=0,0,PL23/PL26)*IF(VALUE(RIGHT($A$1,10))<EOMONTH(PL$2,0),DAY(EOMONTH(PL$2,0))/DAY(VALUE(RIGHT($A$1,10))),1)","v":7.5437614718683974E-2},{"$f":"IF(PM26=0,0,PM23/PM26)*IF(VALUE(RIGHT($A$1,10))<EOMONTH(PM$2,0),DAY(EOMONTH(PM$2,0))/DAY(VALUE(RIGHT($A$1,10))),1)","v":0},null,null,null,null,null,null,null,null,null,null,null,"№"]
["Санкт-Петербург","СЗФО","2012-08-05",{"$f":"D29","v":"2018/2017"},"Интернет-магазин","руб.",{"$f":"D30&\"-\"&E30&\"-\"&F30","v":"2018/2017-Интернет-магазин-руб."},0,0,null,null,null,null,null,null,null,null,null,null,null,null,null,null,null,null,null,null,null,null,null,null,null,null,null,null,null,null,null,null,null,null,null,null,null,null,null,null,null,null,null,null,null,null,null,null,null,null,null,null,null,null,null,null,null,null,null,null,null,null,null,null,null,null,null,null,null,null,null,null,null,null,null,null,null,null,null,null,null,null,null,null,null,null,null,null,null,null,null,null,null,null,null,null,null,null,null,null,null,null,null,null,null,null,null,null,null,null,null,null,null,null,null,null,null,null,null,null,null,null,null,null,null,null,null,null,null,null,null,null,null,null,null,null,null,null,null,null,null,null,null,null,null,null,null,null,null,null,null,null,null,null,null,null,null,null,null,null,null,null,null,null,null,null,null,null,null,null,null,null,null,null,null,null,null,null,null,null,null,null,null,null,null,null,null,null,null,null,null,null,null,null,null,null,null,null,null,null,null,null,null,null,null,null,null,null,null,null,null,null,null,null,null,null,null,null,null,null,null,null,null,null,null,null,null,null,null,null,null,null,null,null,null,null,null,null,null,null,null,null,null,null,null,null,null,null,null,null,null,null,null,null,null,null,null,null,null,null,null,null,null,null,null,null,null,null,null,null,null,null,null,null,null,null,null,null,null,null,null,null,null,null,null,null,null,null,null,null,null,null,null,null,null,null,null,null,null,null,null,null,null,null,null,null,null,null,null,null,null,null,null,null,null,null,null,null,null,null,null,null,null,null,null,null,null,null,null,null,null,null,null,null,null,null,null,null,null,null,null,null,null,null,null,null,null,null,null,null,null,null,null,null,null,null,null,null,null,null,null,null,null,null,{"$f":"IF(NH27=0,0,NH24/NH27)","v":0},null,{"$f":"SUMIF($H$3:$NH$3,NJ$3,$H30:$NH30)","v":0},0,null,null,null,null,null,null,null,null,null,null,null,null,null,null,null,null,null,null,null,null,null,null,null,null,null,null,null,null,null,null,null,null,null,null,null,null,null,null,null,null,null,null,null,null,null,null,null,null,null,null,null,null,{"$f":"SUMIF($H$5:$NH$5,PL$5,$H30:$NH30)","v":0},0]
["Казань",{"$f":"INDEX('Адреса объектов'!$H$13:$I$143,MATCH(ИТОГ!$A31,'Адреса объектов'!$I$13:$I$25,0),1)","v":"ПФО"},{"$f":"MIN(IF(('Адреса объектов'!$I$13:$I$299=$A31)*('Адреса объектов'!$L$13:$L$299>0),'Адреса объектов'!$L$13:$L$299,\"\"))","v":"2013-04-11"},{"$f":"YEAR($H$2)","v":2018},"Итого","руб.","2018-Итого-руб.",{"$f":"SUM(H32,H33)","v":8228},{"$f":"SUM(I32,I33)","v":196492},null,null,null,null,null,null,null,null,null,null,null,null,null,null,null,null,null,null,null,null,null,null,null,null,null,null,null,null,null,null,null,null,null,null,null,null,null,null,null,null,null,null,null,null,null,null,null,null,null,null,null,null,null,null,null,null,null,null,null,null,null,null,null,null,null,null,null,null,null,null,null,null,null,null,null,null,null,null,null,null,null,null,null,null,null,null,null,null,null,null,null,null,null,null,null,null,null,null,null,null,null,null,null,null,null,null,null,null,null,null,null,null,null,null,null,null,null,null,null,null,null,null,null,null,null,null,null,null,null,null,null,null,null,null,null,null,null,null,null,null,null,null,null,null,null,null,null,null,null,null,null,null,null,null,null,null,null,null,null,null,null,null,null,null,null,null,null,null,null,null,null,null,null,null,null,null,null,null,null,null,null,null,null,null,null,null,null,null,null,null,null,null,null,null,null,null,null,null,null,null,null,null,null,null,null,null,null,null,null,null,null,null,null,null,null,null,null,null,null,null,null,null,null,null,null,null,null,null,null,null,null,null,null,null,null,null,null,null,null,null,null,null,null,null,null,null,null,null,null,null,null,null,null,null,null,null,null,null,null,null,null,null,null,null,null,null,null,null,null,null,null,null,null,null,null,null,null,null,null,null,null,null,null,null,null,null,null,null,null,null,null,null,null,null,null,null,null,null,null,null,null,null,null,null,null,null,null,null,null,null,null,null,null,null,null,null,null,null,null,null,null,null,null,null,null,null,null,null,null,null,null,null,null,null,null,null,null,null,null,null,null,null,null,null,null,null,null,null,null,null,null,null,null,null,null,null,null,null,null,null,null,null,null,null,{"$f":"SUMIF($H$3:$NH$3,NJ$3,$H31:$NH31)","v":204720},0,null,null,null,null,null,null,null,null,null,null,null,null,null,null,null,null,null,null,null,null,null,null,null,null,null,null,null,null,null,null,null,null,null,null,null,null,null,null,null,null,null,null,null,null,null,null,null,null,null,null,null,null,{"$f":"SUMIF($H$5:$NH$5,PL$5,$H31:$NH31)","v":204720},0,null,null,null,null,null,null,null,null,null,null,null,null,null,"*","*","*","*","*","*"]
[{"$f":"A31","v":"Казань"},{"$f":"B31","v":"ПФО"},{"$f":"C31","v":"2013-04-11"},{"$f":"D31","v":2018},"Розница","руб.","2018-Розница-руб.",5128,188492,null,null,null,null,null,null,null,null,null,null,null,null,null,null,null,null,null,null,null,null,null,null,null,null,null,null,null,null,null,null,null,null,null,null,null,null,null,null,null,null,null,null,null,null,null,null,null,null,null,null,null,null,null,null,null,null,null,null,null,null,null,null,null,null,null,null,null,null,null,null,null,null,null,null,null,null,null,null,null,null,null,null,null,null,null,null,null,null,null,null,null,null,null,null,null,null,null,null,null,null,null,null,null,null,null,null,null,null,null,null,null,null,null,null,null,null,null,null,null,null,null,null,null,null,null,null,null,null,null,null,null,null,null,null,null,null,null,null,null,null,null,null,null,null,null,null,null,null,null,null,null,null,null,null,null,null,null,null,null,null,null,null,null,null,null,null,null,null,null,null,null,null,null,null,null,null,null,null,null,null,null,null,null,null,null,null,null,null,null,null,null,null,null,null,null,null,null,null,null,null,null,null,null,null,null,null,null,null,null,null,null,null,null,null,null,null,null,null,null,null,null,null,null,null,null,null,null,null,null,null,null,null,null,null,null,null,null,null,null,null,null,null,null,null,null,null,null,null,null,null,null,null,null,null,null,null,null,null,null,null,null,null,null,null,null,null,null,null,null,null,null,null,null,null,null,null,null,null,null,null,null,null,null,null,null,null,null,null,null,null,null,null,null,null,null,null,null,null,null,null,null,null,null,null,null,null,null,null,null,null,null,null,null,null,null,null,null,null,null,null,null,null,null,null,null,null,null,null,null,null,null,null,null,null,null,null,null,null,null,null,null,null,null,null,null,null,null,null,null,null,null,null,null,null,null,null,null,null,null,null,null,null,null,null,{"$f":"SUMIF($H$3:$NH$3,NJ$3,$H32:$NH32)","v":193620},0,null,null,null,null,null,null,null,null,null,null,null,null,null,null,null,null,null,null,null,null,null,null,null,null,null,null,null,null,null,null,null,null,null,null,null,null,null,null,null,null,null,null,null,null,null,null,null,null,null,null,null,null,{"$f":"SUMIF($H$5:$NH$5,PL$5,$H32:$NH32)","v":193620},0,null,null,null,null,null,null,null,null,null,null,null,"#"]
[{"$f":"A32","v":"Казань"},{"$f":"B32","v":"ПФО"},{"$f":"C32","v":"2013-04-11"},{"$f":"D32","v":2018},"Интернет-магазин","руб.","2018-Интернет-магазин-руб.",3100,8000,null,null,null,null,null,null,null,null,null,null,null,null,null,null,null,null,null,null,null,null,null,null,null,null,null,null,null,null,null,null,null,null,null,null,null,null,null,null,null,null,null,null,null,null,null,null,null,null,null,null,null,null,null,null,null,null,null,null,null,null,null,null,null,null,null,null,null,null,null,null,null,null,null,null,null,null,null,null,null,null,null,null,null,null,null,null,null,null,null,null,null,null,null,null,null,null,null,null,null,null,null,null,null,null,null,null,null,null,null,null,null,null,null,null,null,null,null,null,null,null,null,null,null,null,null,null,null,null,null,null,null,null,null,null,null,null,null,null,null,null,null,null,null,null,null,null,null,null,null,null,null,null,null,null,null,null,null,null,null,null,null,null,null,null,null,null,null,null,null,null,null,null,null,null,null,null,null,null,null,null,null,null,null,null,null,null,null,null,null,null,null,null,null,null,null,null,null,null,null,null,null,null,null,null,null,null,null,null,null,null,null,null,null,null,null,null,null,null,null,null,null,null,null,null,null,null,null,null,null,null,null,null,null,null,null,null,null,null,null,null,null,null,null,null,null,null,null,null,null,null,null,null,null,null,null,null,null,null,null,null,null,null,null,null,null,null,null,null,null,null,null,null,null,null,null,null,null,null,null,null,null,null,null,null,null,null,null,null,null,null,null,null,null,null,null,null,null,null,null,null,null,null,null,null,null,null,null,null,null,null,null,null,null,null,null,null,null,null,null,null,null,null,null,null,null,null,null,null,null,null,null,null,null,null,null,null,null,null,null,null,null,null,null,null,null,null,null,null,null,null,null,null,null,null,null,null,null,null,null,null,null,null,null,null,{"$f":"SUMIF($H$3:$NH$3,NJ$3,$H33:$NH33)","v":11100},0,null,null,null,null,null,null,null,null,null,null,null,null,null,null,null,null,null,null,null,null,null,null,null,null,null,null,null,null,null,null,null,null,null,null,null,null,null,null,null,null,null,null,null,null,null,null,null,null,null,null,null,null,{"$f":"SUMIF($H$5:$NH$5,PL$5,$H33:$NH33)","v":11100},0]
["Казань","ПФО","2013-04-11",{"$f":"D31-1","v":2017},"Итого","руб.","2017-Итого-руб.",3731846,3345138,null,null,null,null,null,null,null,null,null,null,null,null,null,null,null,null,null,null,null,null,null,null,null,null,null,null,null,null,null,null,null,null,null,null,null,null,null,null,null,null,null,null,null,null,null,null,null,null,null,null,null,null,null,null,null,null,null,null,null,null,null,null,null,null,null,null,null,null,null,null,null,null,null,null,null,null,null,null,null,null,null,null,null,null,null,null,null,null,null,null,null,null,null,null,null,null,null,null,null,null,null,null,null,null,null,null,null,null,null,null,null,null,null,null,null,null,null,null,null,null,null,null,null,null,null,null,null,null,null,null,null,null,null,null,null,null,null,null,null,null,null,null,null,null,null,null,null,null,null,null,null,null,null,null,null,null,null,null,null,null,null,null,null,null,null,null,null,null,null,null,null,null,null,null,null,null,null,null,null,null,null,null,null,null,null,null,null,null,null,null,null,null,null,null,null,null,null,null,null,null,null,null,null,null,null,null,null,null,null,null,null,null,null,null,null,null,null,null,null,null,null,null,null,null,null,null,null,null,null,null,null,null,null,null,null,null,null,null,null,null,null,null,null,null,null,null,null,null,null,null,null,null,null,null,null,null,null,null,null,null,null,null,null,null,null,null,null,null,null,null,null,null,null,null,null,null,null,null,null,null,null,null,null,null,null,null,null,null,null,null,null,null,null,null,null,null,null,null,null,null,null,null,null,null,null,null,null,null,null,null,null,null,null,null,null,null,null,null,null,null,null,null,null,null,null,null,null,null,null,null,null,null,null,null,null,null,null,null,null,null,null,null,null,null,null,null,null,null,null,null,null,null,null,null,null,null,null,null,null,null,null,null,null,null,211395,{"$f":"SUMIF($H$8:$NH$8,NK$3,$H34:$NH34)","v":7076984},null,null,null,null,null,null,null,null,null,null,null,null,null,null,null,null,null,null,null,null,null,null,null,null,null,null,null,null,null,null,null,null,null,null,null,null,null,null,null,null,null,null,null,null,null,null,null,null,null,null,null,null,86938328.510000005,{"$f":"SUMIF($H$10:$NH$10,PM$5,$H34:$NH34)","v":0}]
["Казань","ПФО","2013-04-11",{"$f":"D34","v":2017},"Розница","руб.","2017-Розница-руб.",2989083,2584572,null,null,null,null,null,null,null,null,null,null,null,null,null,null,null,null,null,null,null,null,null,null,null,null,null,null,null,null,null,null,null,null,null,null,null,null,null,null,null,null,null,null,null,null,null,null,null,null,null,null,null,null,null,null,null,null,null,null,null,null,null,null,null,null,null,null,null,null,null,null,null,null,null,null,null,null,null,null,null,null,null,null,null,null,null,null,null,null,null,null,null,null,null,null,null,null,null,null,null,null,null,null,null,null,null,null,null,null,null,null,null,null,null,null,null,null,null,null,null,null,null,null,null,null,null,null,null,null,null,null,null,null,null,null,null,null,null,null,null,null,null,null,null,null,null,null,null,null,null,null,null,null,null,null,null,null,null,null,null,null,null,null,null,null,null,null,null,null,null,null,null,null,null,null,null,null,null,null,null,null,null,null,null,null,null,null,null,null,null,null,null,null,null,null,null,null,null,null,null,null,null,null,null,null,null,null,null,null,null,null,null,null,null,null,null,null,null,null,null,null,null,null,null,null,null,null,null,null,null,null,null,null,null,null,null,null,null,null,null,null,null,null,null,null,null,null,null,null,null,null,null,null,null,null,null,null,null,null,null,null,null,null,null,null,null,null,null,null,null,null,null,null,null,null,null,null,null,null,null,null,null,null,null,null,null,null,null,null,null,null,null,null,null,null,null,null,null,null,null,null,null,null,null,null,null,null,null,null,null,null,null,null,null,null,null,null,null,null,null,null,null,null,null,null,null,null,null,null,null,null,null,null,null,null,null,null,null,null,null,null,null,null,null,null,null,null,null,null,null,null,null,null,null,null,null,null,null,null,null,null,null,null,null,null,158879,{"$f":"SUMIF($H$8:$NH$8,NK$3,$H35:$NH35)","v":5573655},null,null,null,null,null,null,null,null,null,null,null,null,null,null,null,null,null,null,null,null,null,null,null,null,null,null,null,null,null,null,null,null,null,null,null,null,null,null,null,null,null,null,null,null,null,null,null,null,null,null,null,null,52110740.969999999,{"$f":"SUMIF($H$10:$NH$10,PM$5,$H35:$NH35)","v":0},null,null,null,null,null,null,null,null,null,null,null,"?"]
["Казань","ПФО","2013-04-11",{"$f":"D35","v":2017},"Интернет-магазин","руб.","2017-Интернет-магазин-руб.",0,0,null,null,null,null,null,null,null,null,null,null,null,null,null,null,null,null,null,null,null,null,null,null,null,null,null,null,null,null,null,null,null,null,null,null,null,null,null,null,null,null,null,null,null,null,null,null,null,null,null,null,null,null,null,null,null,null,null,null,null,null,null,null,null,null,null,null,null,null,null,null,null,null,null,null,null,null,null,null,null,null,null,null,null,null,null,null,null,null,null,null,null,null,null,null,null,null,null,null,null,null,null,null,null,null,null,null,null,null,null,null,null,null,null,null,null,null,null,null,null,null,null,null,null,null,null,null,null,null,null,null,null,null,null,null,null,null,null,null,null,null,null,null,null,null,null,null,null,null,null,null,null,null,null,null,null,null,null,null,null,null,null,null,null,null,null,null,null,null,null,null,null,null,null,null,null,null,null,null,null,null,null,null,null,null,null,null,null,null,null,null,null,null,null,null,null,null,null,null,null,null,null,null,null,null,null,null,null,null,null,null,null,null,null,null,null,null,null,null,null,null,null,null,null,null,null,null,null,null,null,null,null,null,null,null,null,null,null,null,null,null,null,null,null,null,null,null,null,null,null,null,null,null,null,null,null,null,null,null,null,null,null,null,null,null,null,null,null,null,null,null,null,null,null,null,null,null,null,null,null,null,null,null,null,null,null,null,null,null,null,null,null,null,null,null,null,null,null,null,null,null,null,null,null,null,null,null,null,null,null,null,null,null,null,null,null,null,null,null,null,null,null,null,null,null,null,null,null,null,null,null,null,null,null,null,null,null,null,null,null,null,null,null,null,null,null,null,null,null,null,null,null,null,null,null,null,null,null,null,null,null,null,null,null,null,{"$f":"SUMIF($H$3:$NH$3,NJ$3,$H36:$NH36)","v":0},0,null,null,null,null,null,null,null,null,null,null,null,null,null,null,null,null,null,null,null,null,null,null,null,null,null,null,null,null,null,null,null,null,null,null,null,null,null,null,null,null,null,null,null,null,null,null,null,null,null,null,null,null,{"$f":"SUMIF($H$5:$NH$5,PL$5,$H36:$NH36)","v":0},0]
["Казань","ПФО","2013-04-11",{"$f":"D31&\"/\"&D34","v":"2018/2017"},"Итого","руб.","2018/2017-Итого-руб.",{"$f":"IF(H34=0,0,H31/H34)","v":2.2048069507691367E-3},5.8739579652618217E-2,null,null,null,null,null,null,null,null,null,null,null,null,null,null,null,null,null,null,null,null,null,null,null,null,null,null,null,null,null,null,null,null,null,null,null,null,null,null,null,null,null,null,null,null,null,null,null,null,null,null,null,null,null,null,null,null,null,null,null,null,null,null,null,null,null,null,null,null,null,null,null,null,null,null,null,null,null,null,null,null,null,null,null,null,null,null,null,null,null,null,null,null,null,null,null,null,null,null,null,null,null,null,null,null,null,null,null,null,null,null,null,null,null,null,null,null,null,null,null,null,null,null,null,null,null,null,null,null,null,null,null,null,null,null,null,null,null,null,null,null,null,null,null,null,null,null,null,null,null,null,null,null,null,null,null,null,null,null,null,null,null,null,null,null,null,null,null,null,null,null,null,null,null,null,null,null,null,null,null,null,null,null,null,null,null,null,null,null,null,null,null,null,null,null,null,null,null,null,null,null,null,null,null,null,null,null,null,null,null,null,null,null,null,null,null,null,null,null,null,null,null,null,null,null,null,null,null,null,null,null,null,null,null,null,null,null,null,null,null,null,null,null,null,null,null,null,null,null,null,null,null,null,null,null,null,null,null,null,null,null,null,null,null,null,null,null,null,null,null,null,null,null,null,null,null,null,null,null,null,null,null,null,null,null,null,null,null,null,null,null,null,null,null,null,null,null,null,null,null,null,null,null,null,null,null,null,null,null,null,null,null,null,null,null,null,null,null,null,null,null,null,null,null,null,null,null,null,null,null,null,null,null,null,null,null,null,null,null,null,null,null,null,null,null,null,null,null,null,null,null,null,null,null,null,null,null,null,null,null,null,null,null,null,null,{"$f":"IF(NJ34=0,0,NJ31/NJ34)*IF(VALUE(RIGHT($A$1,10))<VALUE(RIGHT(NJ$2,8)),7/WEEKDAY(RIGHT($A$1,10),2),1)","v":3.389484141062939},{"$f":"IF(NK34=0,0,NK31/NK34)*IF(VALUE(RIGHT($A$1,10))<VALUE(RIGHT(NK$2,8)),7/WEEKDAY(RIGHT($A$1,10),2),1)","v":0},null,null,null,null,null,null,null,null,null,null,null,null,null,null,null,null,null,null,null,null,null,null,null,null,null,null,null,null,null,null,null,null,null,null,null,null,null,null,null,null,null,null,null,null,null,null,null,null,null,null,null,null,{"$f":"IF(PL34=0,0,PL31/PL34)*IF(VALUE(RIGHT($A$1,10))<EOMONTH(PL$2,0),DAY(EOMONTH(PL$2,0))/DAY(VALUE(RIGHT($A$1,10))),1)","v":3.6498976393766411E-2},{"$f":"IF(PM34=0,0,PM31/PM34)*IF(VALUE(RIGHT($A$1,10))<EOMONTH(PM$2,0),DAY(EOMONTH(PM$2,0))/DAY(VALUE(RIGHT($A$1,10))),1)","v":0}]
["Казань","ПФО","2013-04-11",{"$f":"D37","v":"2018/2017"},"Розница","руб.","2018/2017-Розница-руб.",1.7155763155456039E-3,7.2929676557666023E-2,null,null,null,null,null,null,null,null,null,null,null,null,null,null,null,null,null,null,null,null,null,null,null,null,null,null,null,null,null,null,null,null,null,null,null,null,null,null,null,null,null,null,null,null,null,null,null,null,null,null,null,null,null,null,null,null,null,null,null,null,null,null,null,null,null,null,null,null,null,null,null,null,null,null,null,null,null,null,null,null,null,null,null,null,null,null,null,null,null,null,null,null,null,null,null,null,null,null,null,null,null,null,null,null,null,null,null,null,null,null,null,null,null,null,null,null,null,null,null,null,null,null,null,null,null,null,null,null,null,null,null,null,null,null,null,null,null,null,null,null,null,null,null,null,null,null,null,null,null,null,null,null,null,null,null,null,null,null,null,null,null,null,null,null,null,null,null,null,null,null,null,null,null,null,null,null,null,null,null,null,null,null,null,null,null,null,null,null,null,null,null,null,null,null,null,null,null,null,null,null,null,null,null,null,null,null,null,null,null,null,null,null,null,null,null,null,null,null,null,null,null,null,null,null,null,null,null,null,null,null,null,null,null,null,null,null,null,null,null,null,null,null,null,null,null,null,null,null,null,null,null,null,null,null,null,null,null,null,null,null,null,null,null,null,null,null,null,null,null,null,null,null,null,null,null,null,null,null,null,null,null,null,null,null,null,null,null,null,null,null,null,null,null,null,null,null,null,null,null,null,null,null,null,null,null,null,null,null,null,null,null,null,null,null,null,null,null,null,null,null,null,null,null,null,null,null,null,null,null,null,null,null,null,null,null,null,null,null,null,null,null,null,null,null,null,null,null,null,null,null,null,null,null,null,null,null,null,null,null,null,null,null,null,null,{"$f":"IF(NJ35=0,0,NJ32/NJ35)*IF(VALUE(RIGHT($A$1,10))<VALUE(RIGHT(NJ$2,8)),7/WEEKDAY(RIGHT($A$1,10),2),1)","v":4.2653214081156099},{"$f":"IF(NK35=0,0,NK32/NK35)*IF(VALUE(RIGHT($A$1,10))<VALUE(RIGHT(NK$2,8)),7/WEEKDAY(RIGHT($A$1,10),2),1)","v":0},null,null,null,null,null,null,null,null,null,null,null,null,null,null,null,null,null,null,null,null,null,null,null,null,null,null,null,null,null,null,null,null,null,null,null,null,null,null,null,null,null,null,null,null,null,null,null,null,null,null,null,null,{"$f":"IF(PL35=0,0,PL32/PL35)*IF(VALUE(RIGHT($A$1,10))<EOMONTH(PL$2,0),DAY(EOMONTH(PL$2,0))/DAY(VALUE(RIGHT($A$1,10))),1)","v":5.7591006079298124E-2},{"$f":"IF(PM35=0,0,PM32/PM35)*IF(VALUE(RIGHT($A$1,10))<EOMONTH(PM$2,0),DAY(EOMONTH(PM$2,0))/DAY(VALUE(RIGHT($A$1,10))),1)","v":0},null,null,null,null,null,null,null,null,null,null,null,"№"]
["Казань","ПФО","2013-04-11",{"$f":"D38","v":"2018/2017"},"Интернет-магазин","руб.","2018/2017-Интернет-магазин-руб.",0,0,null,null,null,null,null,null,null,null,null,null,null,null,null,null,null,null,null,null,null,null,null,null,null,null,null,null,null,null,null,null,null,null,null,null,null,null,null,null,null,null,null,null,null,null,null,null,null,null,null,null,null,null,null,null,null,null,null,null,null,null,null,null,null,null,null,null,null,null,null,null,null,null,null,null,null,null,null,null,null,null,null,null,null,null,null,null,null,null,null,null,null,null,null,null,null,null,null,null,null,null,null,null,null,null,null,null,null,null,null,null,null,null,null,null,null,null,null,null,null,null,null,null,null,null,null,null,null,null,null,null,null,null,null,null,null,null,null,null,null,null,null,null,null,null,null,null,null,null,null,null,null,null,null,null,null,null,null,null,null,null,null,null,null,null,null,null,null,null,null,null,null,null,null,null,null,null,null,null,null,null,null,null,null,null,null,null,null,null,null,null,null,null,null,null,null,null,null,null,null,null,null,null,null,null,null,null,null,null,null,null,null,null,null,null,null,null,null,null,null,null,null,null,null,null,null,null,null,null,null,null,null,null,null,null,null,null,null,null,null,null,null,null,null,null,null,null,null,null,null,null,null,null,null,null,null,null,null,null,null,null,null,null,null,null,null,null,null,null,null,null,null,null,null,null,null,null,null,null,null,null,null,null,null,null,null,null,null,null,null,null,null,null,null,null,null,null,null,null,null,null,null,null,null,null,null,null,null,null,null,null,null,null,null,null,null,null,null,null,null,null,null,null,null,null,null,null,null,null,null,null,null,null,null,null,null,null,null,null,null,null,null,null,null,null,null,null,null,null,null,null,null,null,null,null,null,null,null,null,null,null,null,null,null,null,{"$f":"SUMIF($H$3:$NH$3,NJ$3,$H39:$NH39)","v":0},0,null,null,null,null,null,null,null,null,null,null,null,null,null,null,null,null,null,null,null,null,null,null,null,null,null,null,null,null,null,null,null,null,null,null,null,null,null,null,null,null,null,null,null,null,null,null,null,null,null,null,null,null,{"$f":"SUMIF($H$5:$NH$5,PL$5,$H39:$NH39)","v":0},0]
["Краснодар",{"$f":"INDEX('Адреса объектов'!$H$13:$I$143,MATCH(ИТОГ!$A40,'Адреса объектов'!$I$13:$I$25,0),1)","v":"ЮФО"},{"$f":"MIN(IF(('Адреса объектов'!$I$13:$I$299=$A40)*('Адреса объектов'!$L$13:$L$299>0),'Адреса объектов'!$L$13:$L$299,\"\"))","v":"2014-11-28"},{"$f":"YEAR($H$2)","v":2018},"Итого","руб.",{"$f":"D40&\"-\"&E40&\"-\"&F40","v":"2018-Итого-руб."},{"$f":"SUM(H41,H42)","v":9128},{"$f":"SUM(I41,I42)","v":210792},null,null,null,null,null,null,null,null,null,null,null,null,null,null,null,null,null,null,null,null,null,null,null,null,null,null,null,null,null,null,null,null,null,null,null,null,null,null,null,null,null,null,null,null,null,null,null,null,null,null,null,null,null,null,null,null,null,null,null,null,null,null,null,null,null,null,null,null,null,null,null,null,null,null,null,null,null,null,null,null,null,null,null,null,null,null,null,null,null,null,null,null,null,null,null,null,null,null,null,null,null,null,null,null,null,null,null,null,null,null,null,null,null,null,null,null,null,null,null,null,null,null,null,null,null,null,null,null,null,null,null,null,null,null,null,null,null,null,null,null,null,null,null,null,null,null,null,null,null,null,null,null,null,null,null,null,null,null,null,null,null,null,null,null,null,null,null,null,null,null,null,null,null,null,null,null,null,null,null,null,null,null,null,null,null,null,null,null,null,null,null,null,null,null,null,null,null,null,null,null,null,null,null,null,null,null,null,null,null,null,null,null,null,null,null,null,null,null,null,null,null,null,null,null,null,null,null,null,null,null,null,null,null,null,null,null,null,null,null,null,null,null,null,null,null,null,null,null,null,null,null,null,null,null,null,null,null,null,null,null,null,null,null,null,null,null,null,null,null,null,null,null,null,null,null,null,null,null,null,null,null,null,null,null,null,null,null,null,null,null,null,null,null,null,null,null,null,null,null,null,null,null,null,null,null,null,null,null,null,null,null,null,null,null,null,null,null,null,null,null,null,null,null,null,null,null,null,null,null,null,null,null,null,null,null,null,null,null,null,null,null,null,null,null,null,null,null,null,null,null,null,null,null,null,null,null,null,null,null,null,null,null,null,null,{"$f":"SUMIF($H$3:$NH$3,NJ$3,$H40:$NH40)","v":219920},0,null,null,null,null,null,null,null,null,null,null,null,null,null,null,null,null,null,null,null,null,null,null,null,null,null,null,null,null,null,null,null,null,null,null,null,null,null,null,null,null,null,null,null,null,null,null,null,null,null,null,null,null,{"$f":"SUMIF($H$5:$NH$5,PL$5,$H40:$NH40)","v":219920},0,null,null,null,null,null,null,null,null,null,null,null,null,null,"*","*","*","*","*","*"]
[{"$f":"A40","v":"Краснодар"},{"$f":"B40","v":"ЮФО"},{"$f":"C40","v":"2014-11-28"},{"$f":"D40","v":2018},"Розница","руб.","2018-Розница-руб.",6228,208492,null,null,null,null,null,null,null,null,null,null,null,null,null,null,null,null,null,null,null,null,null,null,null,null,null,null,null,null,null,null,null,null,null,null,null,null,null,null,null,null,null,null,null,null,null,null,null,null,null,null,null,null,null,null,null,null,null,null,null,null,null,null,null,null,null,null,null,null,null,null,null,null,null,null,null,null,null,null,null,null,null,null,null,null,null,null,null,null,null,null,null,null,null,null,null,null,null,null,null,null,null,null,null,null,null,null,null,null,null,null,null,null,null,null,null,null,null,null,null,null,null,null,null,null,null,null,null,null,null,null,null,null,null,null,null,null,null,null,null,null,null,null,null,null,null,null,null,null,null,null,null,null,null,null,null,null,null,null,null,null,null,null,null,null,null,null,null,null,null,null,null,null,null,null,null,null,null,null,null,null,null,null,null,null,null,null,null,null,null,null,null,null,null,null,null,null,null,null,null,null,null,null,null,null,null,null,null,null,null,null,null,null,null,null,null,null,null,null,null,null,null,null,null,null,null,null,null,null,null,null,null,null,null,null,null,null,null,null,null,null,null,null,null,null,null,null,null,null,null,null,null,null,null,null,null,null,null,null,null,null,null,null,null,null,null,null,null,null,null,null,null,null,null,null,null,null,null,null,null,null,null,null,null,null,null,null,null,null,null,null,null,null,null,null,null,null,null,null,null,null,null,null,null,null,null,null,null,null,null,null,null,null,null,null,null,null,null,null,null,null,null,null,null,null,null,null,null,null,null,null,null,null,null,null,null,null,null,null,null,null,null,null,null,null,null,null,null,null,null,null,null,null,null,null,null,null,null,null,null,null,null,null,null,null,214720,0,null,null,null,null,null,null,null,null,null,null,null,null,null,null,null,null,null,null,null,null,null,null,null,null,null,null,null,null,null,null,null,null,null,null,null,null,null,null,null,null,null,null,null,null,null,null,null,null,null,null,null,null,214720,0,null,null,null,null,null,null,null,null,null,null,null,"#"]
[{"$f":"A41","v":"Краснодар"},{"$f":"B41","v":"ЮФО"},{"$f":"C41","v":"2014-11-28"},{"$f":"D41","v":2018},"Интернет-магазин","руб.",{"$f":"D42&\"-\"&E42&\"-\"&F42","v":"2018-Интернет-магазин-руб."},2900,2300,null,null,null,null,null,null,null,null,null,null,null,null,null,null,null,null,null,null,null,null,null,null,null,null,null,null,null,null,null,null,null,null,null,null,null,null,null,null,null,null,null,null,null,null,null,null,null,null,null,null,null,null,null,null,null,null,null,null,null,null,null,null,null,null,null,null,null,null,null,null,null,null,null,null,null,null,null,null,null,null,null,null,null,null,null,null,null,null,null,null,null,null,null,null,null,null,null,null,null,null,null,null,null,null,null,null,null,null,null,null,null,null,null,null,null,null,null,null,null,null,null,null,null,null,null,null,null,null,null,null,null,null,null,null,null,null,null,null,null,null,null,null,null,null,null,null,null,null,null,null,null,null,null,null,null,null,null,null,null,null,null,null,null,null,null,null,null,null,null,null,null,null,null,null,null,null,null,null,null,null,null,null,null,null,null,null,null,null,null,null,null,null,null,null,null,null,null,null,null,null,null,null,null,null,null,null,null,null,null,null,null,null,null,null,null,null,null,null,null,null,null,null,null,null,null,null,null,null,null,null,null,null,null,null,null,null,null,null,null,null,null,null,null,null,null,null,null,null,null,null,null,null,null,null,null,null,null,null,null,null,null,null,null,null,null,null,null,null,null,null,null,null,null,null,null,null,null,null,null,null,null,null,null,null,null,null,null,null,null,null,null,null,null,null,null,null,null,null,null,null,null,null,null,null,null,null,null,null,null,null,null,null,null,null,null,null,null,null,null,null,null,null,null,null,null,null,null,null,null,null,null,null,null,null,null,null,null,null,null,null,null,null,null,null,null,null,null,null,null,null,null,null,null,null,null,null,null,null,null,null,null,null,null,null,{"$f":"SUMIF($H$3:$NH$3,NJ$3,$H42:$NH42)","v":5200},0,null,null,null,null,null,null,null,null,null,null,null,null,null,null,null,null,null,null,null,null,null,null,null,null,null,null,null,null,null,null,null,null,null,null,null,null,null,null,null,null,null,null,null,null,null,null,null,null,null,null,null,null,{"$f":"SUMIF($H$5:$NH$5,PL$5,$H42:$NH42)","v":5200},0]
["Краснодар","ЮФО","2014-11-28",{"$f":"D40-1","v":2017},"Итого","руб.",{"$f":"D43&\"-\"&E43&\"-\"&F43","v":"2017-Итого-руб."},2731846,3345138,null,null,null,null,null,null,null,null,null,null,null,null,null,null,null,null,null,null,null,null,null,null,null,null,null,null,null,null,null,null,null,null,null,null,null,null,null,null,null,null,null,null,null,null,null,null,null,null,null,null,null,null,null,null,null,null,null,null,null,null,null,null,null,null,null,null,null,null,null,null,null,null,null,null,null,null,null,null,null,null,null,null,null,null,null,null,null,null,null,null,null,null,null,null,null,null,null,null,null,null,null,null,null,null,null,null,null,null,null,null,null,null,null,null,null,null,null,null,null,null,null,null,null,null,null,null,null,null,null,null,null,null,null,null,null,null,null,null,null,null,null,null,null,null,null,null,null,null,null,null,null,null,null,null,null,null,null,null,null,null,null,null,null,null,null,null,null,null,null,null,null,null,null,null,null,null,null,null,null,null,null,null,null,null,null,null,null,null,null,null,null,null,null,null,null,null,null,null,null,null,null,null,null,null,null,null,null,null,null,null,null,null,null,null,null,null,null,null,null,null,null,null,null,null,null,null,null,null,null,null,null,null,null,null,null,null,null,null,null,null,null,null,null,null,null,null,null,null,null,null,null,null,null,null,null,null,null,null,null,null,null,null,null,null,null,null,null,null,null,null,null,null,null,null,null,null,null,null,null,null,null,null,null,null,null,null,null,null,null,null,null,null,null,null,null,null,null,null,null,null,null,null,null,null,null,null,null,null,null,null,null,null,null,null,null,null,null,null,null,null,null,null,null,null,null,null,null,null,null,null,null,null,null,null,null,null,null,null,null,null,null,null,null,null,null,null,null,null,null,null,null,null,null,null,null,null,null,null,null,null,null,null,null,null,211395,{"$f":"SUMIF($H$8:$NH$8,NK$3,$H43:$NH43)","v":6076984},null,null,null,null,null,null,null,null,null,null,null,null,null,null,null,null,null,null,null,null,null,null,null,null,null,null,null,null,null,null,null,null,null,null,null,null,null,null,null,null,null,null,null,null,null,null,null,null,null,null,null,null,86938328.510000005,{"$f":"SUMIF($H$10:$NH$10,PM$5,$H43:$NH43)","v":0}]
["Краснодар","ЮФО","2014-11-28",{"$f":"D43","v":2017},"Розница","руб.","2017-Розница-руб.",3989083,2584572,null,null,null,null,null,null,null,null,null,null,null,null,null,null,null,null,null,null,null,null,null,null,null,null,null,null,null,null,null,null,null,null,null,null,null,null,null,null,null,null,null,null,null,null,null,null,null,null,null,null,null,null,null,null,null,null,null,null,null,null,null,null,null,null,null,null,null,null,null,null,null,null,null,null,null,null,null,null,null,null,null,null,null,null,null,null,null,null,null,null,null,null,null,null,null,null,null,null,null,null,null,null,null,null,null,null,null,null,null,null,null,null,null,null,null,null,null,null,null,null,null,null,null,null,null,null,null,null,null,null,null,null,null,null,null,null,null,null,null,null,null,null,null,null,null,null,null,null,null,null,null,null,null,null,null,null,null,null,null,null,null,null,null,null,null,null,null,null,null,null,null,null,null,null,null,null,null,null,null,null,null,null,null,null,null,null,null,null,null,null,null,null,null,null,null,null,null,null,null,null,null,null,null,null,null,null,null,null,null,null,null,null,null,null,null,null,null,null,null,null,null,null,null,null,null,null,null,null,null,null,null,null,null,null,null,null,null,null,null,null,null,null,null,null,null,null,null,null,null,null,null,null,null,null,null,null,null,null,null,null,null,null,null,null,null,null,null,null,null,null,null,null,null,null,null,null,null,null,null,null,null,null,null,null,null,null,null,null,null,null,null,null,null,null,null,null,null,null,null,null,null,null,null,null,null,null,null,null,null,null,null,null,null,null,null,null,null,null,null,null,null,null,null,null,null,null,null,null,null,null,null,null,null,null,null,null,null,null,null,null,null,null,null,null,null,null,null,null,null,null,null,null,null,null,null,null,null,null,null,null,null,null,null,null,158879,6573655,null,null,null,null,null,null,null,null,null,null,null,null,null,null,null,null,null,null,null,null,null,null,null,null,null,null,null,null,null,null,null,null,null,null,null,null,null,null,null,null,null,null,null,null,null,null,null,null,null,null,null,null,52110740.969999999,0,null,null,null,null,null,null,null,null,null,null,null,"?"]
["Краснодар","ЮФО","2014-11-28",{"$f":"D44","v":2017},"Интернет-магазин","руб.",{"$f":"D45&\"-\"&E45&\"-\"&F45","v":"2017-Интернет-магазин-руб."},0,0,null,null,null,null,null,null,null,null,null,null,null,null,null,null,null,null,null,null,null,null,null,null,null,null,null,null,null,null,null,null,null,null,null,null,null,null,null,null,null,null,null,null,null,null,null,null,null,null,null,null,null,null,null,null,null,null,null,null,null,null,null,null,null,null,null,null,null,null,null,null,null,null,null,null,null,null,null,null,null,null,null,null,null,null,null,null,null,null,null,null,null,null,null,null,null,null,null,null,null,null,null,null,null,null,null,null,null,null,null,null,null,null,null,null,null,null,null,null,null,null,null,null,null,null,null,null,null,null,null,null,null,null,null,null,null,null,null,null,null,null,null,null,null,null,null,null,null,null,null,null,null,null,null,null,null,null,null,null,null,null,null,null,null,null,null,null,null,null,null,null,null,null,null,null,null,null,null,null,null,null,null,null,null,null,null,null,null,null,null,null,null,null,null,null,null,null,null,null,null,null,null,null,null,null,null,null,null,null,null,null,null,null,null,null,null,null,null,null,null,null,null,null,null,null,null,null,null,null,null,null,null,null,null,null,null,null,null,null,null,null,null,null,null,null,null,null,null,null,null,null,null,null,null,null,null,null,null,null,null,null,null,null,null,null,null,null,null,null,null,null,null,null,null,null,null,null,null,null,null,null,null,null,null,null,null,null,null,null,null,null,null,null,null,null,null,null,null,null,null,null,null,null,null,null,null,null,null,null,null,null,null,null,null,null,null,null,null,null,null,null,null,null,null,null,null,null,null,null,null,null,null,null,null,null,null,null,null,null,null,null,null,null,null,null,null,null,null,null,null,null,null,null,null,null,null,null,null,null,null,null,null,null,null,null,{"$f":"SUMIF($H$3:$NH$3,NJ$3,$H45:$NH45)","v":0},0,null,null,null,null,null,null,null,null,null,null,null,null,null,null,null,null,null,null,null,null,null,null,null,null,null,null,null,null,null,null,null,null,null,null,null,null,null,null,null,null,null,null,null,null,null,null,null,null,null,null,null,null,{"$f":"SUMIF($H$5:$NH$5,PL$5,$H45:$NH45)","v":0},0]
["Краснодар","ЮФО","2014-11-28",{"$f":"D40&\"/\"&D43","v":"2018/2017"},"Итого","руб.","2018/2017-Итого-руб.",{"$f":"IF(H43=0,0,H40/H43)","v":3.3413303678172194E-3},{"$f":"IF(I43=0,0,I40/I43)","v":6.3014440659847223E-2},null,null,null,null,null,null,null,null,null,null,null,null,null,null,null,null,null,null,null,null,null,null,null,null,null,null,null,null,null,null,null,null,null,null,null,null,null,null,null,null,null,null,null,null,null,null,null,null,null,null,null,null,null,null,null,null,null,null,null,null,null,null,null,null,null,null,null,null,null,null,null,null,null,null,null,null,null,null,null,null,null,null,null,null,null,null,null,null,null,null,null,null,null,null,null,null,null,null,null,null,null,null,null,null,null,null,null,null,null,null,null,null,null,null,null,null,null,null,null,null,null,null,null,null,null,null,null,null,null,null,null,null,null,null,null,null,null,null,null,null,null,null,null,null,null,null,null,null,null,null,null,null,null,null,null,null,null,null,null,null,null,null,null,null,null,null,null,null,null,null,null,null,null,null,null,null,null,null,null,null,null,null,null,null,null,null,null,null,null,null,null,null,null,null,null,null,null,null,null,null,null,null,null,null,null,null,null,null,null,null,null,null,null,null,null,null,null,null,null,null,null,null,null,null,null,null,null,null,null,null,null,null,null,null,null,null,null,null,null,null,null,null,null,null,null,null,null,null,null,null,null,null,null,null,null,null,null,null,null,null,null,null,null,null,null,null,null,null,null,null,null,null,null,null,null,null,null,null,null,null,null,null,null,null,null,null,null,null,null,null,null,null,null,null,null,null,null,null,null,null,null,null,null,null,null,null,null,null,null,null,null,null,null,null,null,null,null,null,null,null,null,null,null,null,null,null,null,null,null,null,null,null,null,null,null,null,null,null,null,null,null,null,null,null,null,null,null,null,null,null,null,null,null,null,null,null,null,null,null,null,null,null,null,null,{"$f":"IF(NJ43=0,0,NJ40/NJ43)*IF(VALUE(RIGHT($A$1,10))<VALUE(RIGHT(NJ$2,8)),7/WEEKDAY(RIGHT($A$1,10),2),1)","v":3.6411457224626882},{"$f":"IF(NK43=0,0,NK40/NK43)*IF(VALUE(RIGHT($A$1,10))<VALUE(RIGHT(NK$2,8)),7/WEEKDAY(RIGHT($A$1,10),2),1)","v":0},null,null,null,null,null,null,null,null,null,null,null,null,null,null,null,null,null,null,null,null,null,null,null,null,null,null,null,null,null,null,null,null,null,null,null,null,null,null,null,null,null,null,null,null,null,null,null,null,null,null,null,null,{"$f":"IF(PL43=0,0,PL40/PL43)*IF(VALUE(RIGHT($A$1,10))<EOMONTH(PL$2,0),DAY(EOMONTH(PL$2,0))/DAY(VALUE(RIGHT($A$1,10))),1)","v":3.920894337884482E-2},{"$f":"IF(PM43=0,0,PM40/PM43)*IF(VALUE(RIGHT($A$1,10))<EOMONTH(PM$2,0),DAY(EOMONTH(PM$2,0))/DAY(VALUE(RIGHT($A$1,10))),1)","v":0}]
["Краснодар","ЮФО","2014-11-28",{"$f":"D46","v":"2018/2017"},"Розница","руб.","2018/2017-Розница-руб.",{"$f":"IF(H44=0,0,H41/H44)","v":1.561261071780156E-3},{"$f":"IF(I44=0,0,I41/I44)","v":8.0667901687397375E-2},null,null,null,null,null,null,null,null,null,null,null,null,null,null,null,null,null,null,null,null,null,null,null,null,null,null,null,null,null,null,null,null,null,null,null,null,null,null,null,null,null,null,null,null,null,null,null,null,null,null,null,null,null,null,null,null,null,null,null,null,null,null,null,null,null,null,null,null,null,null,null,null,null,null,null,null,null,null,null,null,null,null,null,null,null,null,null,null,null,null,null,null,null,null,null,null,null,null,null,null,null,null,null,null,null,null,null,null,null,null,null,null,null,null,null,null,null,null,null,null,null,null,null,null,null,null,null,null,null,null,null,null,null,null,null,null,null,null,null,null,null,null,null,null,null,null,null,null,null,null,null,null,null,null,null,null,null,null,null,null,null,null,null,null,null,null,null,null,null,null,null,null,null,null,null,null,null,null,null,null,null,null,null,null,null,null,null,null,null,null,null,null,null,null,null,null,null,null,null,null,null,null,null,null,null,null,null,null,null,null,null,null,null,null,null,null,null,null,null,null,null,null,null,null,null,null,null,null,null,null,null,null,null,null,null,null,null,null,null,null,null,null,null,null,null,null,null,null,null,null,null,null,null,null,null,null,null,null,null,null,null,null,null,null,null,null,null,null,null,null,null,null,null,null,null,null,null,null,null,null,null,null,null,null,null,null,null,null,null,null,null,null,null,null,null,null,null,null,null,null,null,null,null,null,null,null,null,null,null,null,null,null,null,null,null,null,null,null,null,null,null,null,null,null,null,null,null,null,null,null,null,null,null,null,null,null,null,null,null,null,null,null,null,null,null,null,null,null,null,null,null,null,null,null,null,null,null,null,null,null,null,null,null,null,{"$f":"IF(NJ44=0,0,NJ41/NJ44)*IF(VALUE(RIGHT($A$1,10))<VALUE(RIGHT(NJ$2,8)),7/WEEKDAY(RIGHT($A$1,10),2),1)","v":4.7301405472088822},{"$f":"IF(NK44=0,0,NK41/NK44)*IF(VALUE(RIGHT($A$1,10))<VALUE(RIGHT(NK$2,8)),7/WEEKDAY(RIGHT($A$1,10),2),1)","v":0},null,null,null,null,null,null,null,null,null,null,null,null,null,null,null,null,null,null,null,null,null,null,null,null,null,null,null,null,null,null,null,null,null,null,null,null,null,null,null,null,null,null,null,null,null,null,null,null,null,null,null,null,{"$f":"IF(PL44=0,0,PL41/PL44)*IF(VALUE(RIGHT($A$1,10))<EOMONTH(PL$2,0),DAY(EOMONTH(PL$2,0))/DAY(VALUE(RIGHT($A$1,10))),1)","v":6.3867063450815498E-2},{"$f":"IF(PM44=0,0,PM41/PM44)*IF(VALUE(RIGHT($A$1,10))<EOMONTH(PM$2,0),DAY(EOMONTH(PM$2,0))/DAY(VALUE(RIGHT($A$1,10))),1)","v":0},null,null,null,null,null,null,null,null,null,null,null,"№"]
["Краснодар","ЮФО","2014-11-28",{"$f":"D47","v":"2018/2017"},"Интернет-магазин","руб.",{"$f":"D48&\"-\"&E48&\"-\"&F48","v":"2018/2017-Интернет-магазин-руб."},{"$f":"IF(H45=0,0,H42/H45)","v":0},{"$f":"IF(I45=0,0,I42/I45)","v":0},null,null,null,null,null,null,null,null,null,null,null,null,null,null,null,null,null,null,null,null,null,null,null,null,null,null,null,null,null,null,null,null,null,null,null,null,null,null,null,null,null,null,null,null,null,null,null,null,null,null,null,null,null,null,null,null,null,null,null,null,null,null,null,null,null,null,null,null,null,null,null,null,null,null,null,null,null,null,null,null,null,null,null,null,null,null,null,null,null,null,null,null,null,null,null,null,null,null,null,null,null,null,null,null,null,null,null,null,null,null,null,null,null,null,null,null,null,null,null,null,null,null,null,null,null,null,null,null,null,null,null,null,null,null,null,null,null,null,null,null,null,null,null,null,null,null,null,null,null,null,null,null,null,null,null,null,null,null,null,null,null,null,null,null,null,null,null,null,null,null,null,null,null,null,null,null,null,null,null,null,null,null,null,null,null,null,null,null,null,null,null,null,null,null,null,null,null,null,null,null,null,null,null,null,null,null,null,null,null,null,null,null,null,null,null,null,null,null,null,null,null,null,null,null,null,null,null,null,null,null,null,null,null,null,null,null,null,null,null,null,null,null,null,null,null,null,null,null,null,null,null,null,null,null,null,null,null,null,null,null,null,null,null,null,null,null,null,null,null,null,null,null,null,null,null,null,null,null,null,null,null,null,null,null,null,null,null,null,null,null,null,null,null,null,null,null,null,null,null,null,null,null,null,null,null,null,null,null,null,null,null,null,null,null,null,null,null,null,null,null,null,null,null,null,null,null,null,null,null,null,null,null,null,null,null,null,null,null,null,null,null,null,null,null,null,null,null,null,null,null,null,null,null,null,null,null,null,null,null,null,null,null,null,null,{"$f":"SUMIF($H$3:$NH$3,NJ$3,$H48:$NH48)","v":0},0,null,null,null,null,null,null,null,null,null,null,null,null,null,null,null,null,null,null,null,null,null,null,null,null,null,null,null,null,null,null,null,null,null,null,null,null,null,null,null,null,null,null,null,null,null,null,null,null,null,null,null,null,{"$f":"SUMIF($H$5:$NH$5,PL$5,$H48:$NH48)","v":0},0]

{"sheet":"Адреса объектов","index":1,"n_rows":25,"n_cols":13,"rows_kept":25,"cut":false,"hidden":false,"merged":[]}
["Код 1","Код 2","Название в отчетах 1","Название в отчетах 2","Статус","Склад отгрузки","Способ доставки","Федеральные округа","Регион","Город","АЦ","Дата открытия","Дата закрытия"]
["Склады :"]
[null,15,"?","#",null,"МСК",null,"ЦФО","Москва",null,null,"2015-01-01"]
[null,8,"?","#",null,"ЕКБ",null,"УФО","Екатеринбург",null,null,"2013-01-01"]
[null,5,"?","#",null,"СПБ",null,"СЗФО","Санкт-Петербург",null,null,"2012-01-01"]
[null,12,"?","#",null,"НСК",null,"СФО","Новосибирск",null,null,"2013-01-01"]
[null,16,"?","#",null,"КАЗ",null,"ПФО","Казань",null,null,"2013-01-01"]
[null,14,"?","#",null,"РНД",null,"ЮФО","Ростов-на-Дону",null,null,"2013-01-01"]
[null,2,"?","#",null,null,null,null,"Санкт-Петербург",null,null,"2012-01-01","2014-01-01"]
[null,59,"?","#",null,null,null,null,"Иркутск",null,null,"2013-09-16","2015-01-01"]
[null,46,"?","#",null,null,null,null,"Москва",null,null,"2015-01-01"]
["Магазины:"]
[501,58,"?","#","*","НСК","DHL","ДВФО","Иркутск","Иркутск","#","2014-09-16"]
[271,90,"?","#","*","МСК","DHL","ДВФО","Владивосток","Владивосток","#","2015-06-26"]
[130,238,"?","#","*","МСК","DHL","ПФО","Саратов","Саратов","#","2018-03-18"]
[133,243,"?","#","*","КАЗ","своя","ПФО","Казань","Казань","#","2013-04-11"]
[801,53,"?","#","*","СПБ","своя","СЗФО","Санкт-Петербург","Санкт-Петербург","#","2012-08-05"]
[109,207,"?","#","*","МСК","DHL","СЗФО","Великий Новгород","Великий Новгород","#","2016-10-14"]
[151,66,"?","#","*","НСК","своя","СФО","Новосибирск","Новосибирск","#","2014-10-14"]
[870,172,"?","#","*","НСК","DHL","СФО","Кемерово","Кемерово","#","2016-05-16"]
[110,55,"?","#","*","ЕКБ","своя","УФО","Екатеринбург","Екатеринбург","#","2013-08-29"]
[991,191,"?","#","*","ЕКБ","DHL","УФО","Челябинск","Челябинск","#","2016-08-29"]
[191,72,"?","#","*","МСК","своя","ЦФО","Москва","Москва","#","2018-01-02"]
[561,125,"?","#","*","МСК","своя","ЦФО","МО","Воскресенск","#","2015-10-14"]
[401,129,"?","#","*","РНД","своя","ЮФО","Краснодар","Краснодар","#","2014-11-28"]